{"text_format":"1","workbook":"xlsx","n_sheets":4,"sheets":["IA_AC500","Корзина","КП","Заявка"],"not_rendered":{"charts":0,"images":3,"macros":1,"external_links":0,"defined_names":2,"comments":0,"pivot_tables":0},"unopened":[],"bounds":{"document_bytes":16777216,"sheet_cells":100000,"rows_first":2000,"rows_last":500,"rows_between":2000,"halvings":0,"cell_chars":16384,"cell_head_chars":4096},"cells_cut":0,"cells_raw":0,"read":"whole","date_system":"1900"}

{"sheet":"IA_AC500","index":0,"n_rows":319,"n_cols":9,"rows_kept":319,"cut":false,"hidden":false,"merged":[]}
[]
[]
[]
[]
["ТОВ «АББ Лтд»","Тел.: +380 44 495 22 11","Дата: ","2019-02-01"]
["вул. Миколи Грінченка, 2/1","Факс: +380 44 495 22 10"]
["м. Київ 03680","www.abb.ua"]
[]
["Даний прайс-лист є індикативним і може змінюватися на розсуд компанії ТОВ «АББ ЛТД» при підготовці комерційних пропозицій."]
["Поставка обладнання здійснюється на умовах ExW відповідно до правил ІНКОТЕРМС 2010 за адресою: с. Перемога, вул. Богдана Хмельницького, 1"]
[]
["Тип","Опис","Ціна, євро без ПДВ","Поставка: склад, замовлення, частково","Серія","Товарна група","Кратність при замовленні","Од. вимір. \nшт.","Примітки/код заказа"]
["AI523","AI523 Модуль аналогових входів 16AI",495,"замовлення","AC500","PLC and Automation",1,"шт","1SAP250300R0001"]
["AI531","AI531 Модуль аналогових входів 8AI",470,"замовлення","AC500","PLC and Automation",1,"шт","1SAP250600R0001"]
["AO523","AO523 Модуль аналогових виходів 16AO",512,"замовлення","AC500","PLC and Automation",1,"шт","1SAP250200R0001"]
["AX521","AX521 Модуль аналоговий комбінований 4AI/4AO",335,"замовлення","AC500","PLC and Automation",1,"шт","1SAP250100R0001"]
["AX522","AX522 Модуль аналоговий комбінований 8AI/8AO",502,"замовлення","AC500","PLC and Automation",1,"шт","1SAP250000R0001"]
["CD522","CD522 Модуль швидкісн Вх/Вих 2ENC 2PWM",330,"замовлення","AC500","PLC and Automation",1,"шт","1SAP260300R0001"]
["CI501-PNIO","CI501-PNIO Модуль станції PROFINET IO 8DI/8DO/4AI/2AO",552,"замовлення","AC500","PLC and Automation",1,"шт","1SAP220600R0001"]
["CI502-PNIO","CI502-PNIO Модуль станції PROFINET IO 8DC/8DI/8DO",290,"замовлення","AC500","PLC and Automation",1,"шт","1SAP220700R0001"]
["CI504-PNIO","CI504-PNIO Модуль шлюза PROFINET-RS485",389,"замовлення","AC500","PLC and Automation",1,"шт","1SAP221300R0001"]
["CI506-PNIO","CI506-PNIO Модуль шлюза PROFINET-RS485/CAN",610,"замовлення","AC500","PLC and Automation",1,"шт","1SAP221500R0001"]
["CI511-ETHCAT","CI511-ETHCAT Модуль станції EtherCAT 8DI/8DO/4AI/2AO",570,"замовлення","AC500","PLC and Automation",1,"шт","1SAP220900R0001"]
["CI512-ETHCAT","CI512-ETHCAT Модуль станції EtherCAT 8DC/8DI/8DO",302,"замовлення","AC500","PLC and Automation",1,"шт","1SAP221000R0001"]
["CI541-DP","CI541-DP Модуль станції Profibus DP 8DI/8DO/4AI/2AO",445,"замовлення","AC500","PLC and Automation",1,"шт","1SAP224100R0001"]
["CI542-DP","CI542-DP Модуль станції Profibus DP 8DC/8DI/8DO",305,"замовлення","AC500","PLC and Automation",1,"шт","1SAP224200R0001"]
["CI581-CN","CI581-CN Модуль станції CANopen 8DI/8DO/4AI/2AO",449,"замовлення","AC500","PLC and Automation",1,"шт","1SAP228100R0001"]
["CI582-CN","CI582-CN Модуль станції CANopen 8DC/8DI/8DO",261,"замовлення","AC500","PLC and Automation",1,"шт","1SAP228200R0001"]
["CI590-CS31-HA","CI590-CS31-HA Модуль станції шини CS31 резервований 16DC",373,"замовлення","AC500","PLC and Automation",1,"шт","1SAP221100R0001"]
["CI592-CS31","CI592-CS31 Модуль станції шини CS31 8DI/4AI/2AO/8DC",355,"замовлення","AC500","PLC and Automation",1,"шт","1SAP221200R0001"]
["CM574-RCOM","CM574-RCOM Модуль комунікаційний 2x лінії RS232/485",560,"замовлення","AC500","PLC and Automation",1,"шт","1SAP170401R0201"]
["CM574-RS","CM574-RS Модуль комунікаційний 2x лінії RS232/485",425,"замовлення","AC500","PLC and Automation",1,"шт","1SAP170400R0201"]
["CM579-ETHCAT","CM579-ETHCAT Комунікаційни модуль EtherCAT Master",650,"замовлення","AC500","PLC and Automation",1,"шт","1SAP170902R0101"]
["CM579-PNIO","CM579-PNIO Комунікаційний модуль PROFINET IO Controller",620,"замовлення","AC500","PLC and Automation",1,"шт","1SAP170901R0101"]
["CM588-CN","CM588-CN Комунікаційни модуль CANopen Slave",338,"замовлення","AC500","PLC and Automation",1,"шт","1SAP172800R0001"]
["CM589-PNIO","CM589-PNIO Комунікаційни модуль PROFINET IO Device",410,"замовлення","AC500","PLC and Automation",1,"шт","1SAP172900R0011"]
["CM592-DP","CM592-DP Комунікаційний модуль PROFIBUS DP Master",510,"замовлення","AC500","PLC and Automation",1,"шт","1SAP173200R0001"]
["CM582-DP","CM582-DP Комунікаційний модуль Profibus DP Slave",410,"замовлення","AC500","PLC and Automation",1,"шт","1SAP172200R0001"]
["CM597-ETH","CM597-ETH Комунікаційни модуль Ethernet Modbus TCP",490,"замовлення","AC500","PLC and Automation",1,"шт","1SAP173700R0001"]
["CM598-CN","CM598-CN Комунікаційни модуль CANopen Master",520,"замовлення","AC500","PLC and Automation",1,"шт","1SAP173800R0001"]
["DA501","DA501 Модуль комбінований 16DI/4AI/2AO/8DC",310,"замовлення","AC500","PLC and Automation",1,"шт","1SAP250700R0001"]
["DC522","DC522 Модуль дискретний конфігурований входи/виходи 16DC",184,"замовлення","AC500","PLC and Automation",1,"шт","1SAP240600R0001"]
["DC523","DC523 Модуль дискретний конфігурований входи/виходи 24DC",220,"замовлення","AC500","PLC and Automation",1,"шт","1SAP240500R0001"]
["DC532","DC532 Модуль дискретний комбінований 16DI/16DC",245,"замовлення","AC500","PLC and Automation",1,"шт","1SAP240100R0001"]
["DC541-CM","DC541-CM Модуль швидкісних входіВ/Виходів 8DC",264,"замовлення","AC500","PLC and Automation",1,"шт","1SAP270000R0001"]
["DC551-CS31","DC551-CS31 Модуль станції шини CS31 8DI/16DC",215,"замовлення","AC500","PLC and Automation",1,"шт","1SAP220500R0001"]
["DI524","DI524 Модуль дискретних входів 32DI",173,"замовлення","AC500","PLC and Automation",1,"шт","1SAP240000R0001"]
["DM-KEY","DM-KEY USB ключ для запису лінцензій Automation Builder та бібліотек",148,"замовлення","AC500","PLC and Automation",1,"шт","1SAP193600R0001"]
["DM200-TOOL","DM200-TOOL  Ліцензія одиночна Standard для Automation Builder 2.x",490,"замовлення","AC500","PLC and Automation",1,"шт","1SAS010000R0102"]
["DM201-TOOL-UPGR","DM201-TOOL-UPGR Оновлення ліцензії Automation Builder 2.x Standard з 1.x",282,"замовлення","AC500","PLC and Automation",1,"шт","1SAS010001R0102"]
["DM202-PREM","DM202-PREM Ліцензія одиночна Premium для Automation Builder 2.x",2200,"замовлення","AC500","PLC and Automation",1,"шт","1SAS010002R0102"]
["DM203-PREM-UPGR","DM203-PREM-UPGR Оновлення ліцензії Automation Builder 2.x Premium з 1.x",599,"замовлення","AC500","PLC and Automation",1,"шт","1SAS010003R0102"]
["DM204-TOOL-NW","DM204-TOOL-NW Ліцензія мережева Premium для Automation Builder 2.x",969,"замовлення","AC500","PLC and Automation",1,"шт","1SAS010004R0102"]
["DM206-PREM-UPCA","DM206-PREM-UPCA Оновлення мережевої ліцензії Automation Builder 2.x Premium з 1.x",958,"замовлення","AC500","PLC and Automation",1,"шт","1SAS010006R0102"]
["DM207-PVC","DM207-PVC Підтримка Системи контролю версій Subversion для Automation Builder 2.x",899,"замовлення","AC500","PLC and Automation",1,"шт","1SAS010007R0102"]
["DM208-PAC","DM208-PAC Підтримка Application Composer для Automation Builder 2.x",1775,"замовлення","AC500","PLC and Automation",1,"шт","1SAS010008R0102"]
["DM209-PUM","DM209-PUM Підтримка UML для Automation Builder 2.x",1775,"замовлення","AC500","PLC and Automation",1,"шт","1SAS010009R0102"]
["DM210-PSA","DM210-PSA Підтримка статичного аналізатора коду для Automation Builder 2.x",537,"замовлення","AC500","PLC and Automation",1,"шт","1SAS010010R0102"]
["DM211-PPR","DM211-PPR Підтримка профайлера для Automation Builder 2.x",1775,"замовлення","AC500","PLC and Automation",1,"шт","1SAS010011R0102"]
["DM212-PTM","DM212-PTM Підтримка юніт тестів для Automation Builder 2.x",2690,"замовлення","AC500","PLC and Automation",1,"шт","1SAS010012R0102"]
["DM214-PVC-NW","DM214-PVC-NW Мережева Підтримка Системи контролю версій Subversion для Automation Builder 2.x",1617,"замовлення","AC500","PLC and Automation",1,"шт","1SAS010014R0102"]
["DM215-PAC-NW","DM215-PAC-NW Мережева підтримка Application Composer для Automation Builder 2.x",3233,"замовлення","AC500","PLC and Automation",1,"шт","1SAS010015R0102"]
["DM216-PUM-NW","DM216-PUM-NW Мережева підтримка UML для Automation Builder 2.x",3233,"замовлення","AC500","PLC and Automation",1,"шт","1SAS010016R0102"]
["DM217-PSA-NW","DM217-PSA-NW Мережева підтримка статичного аналізатора коду для Automation Builder 2.x",970,"замовлення","AC500","PLC and Automation",1,"шт","1SAS010017R0102"]
["DM218-PPR-NW","DM218-PPR-NW Мережева підтримка профайлера для Automation Builder 2.x",3233,"замовлення","AC500","PLC and Automation",1,"шт","1SAS010018R0102"]
["DM219-PTM-NW","DM219-PTM-NW Мережева підтримка юніт тестів для Automation Builder 2.x",4849,"замовлення","AC500","PLC and Automation",1,"шт","1SAS010019R0102"]
["DM220-FSE","DM220-FSE Підтримка програмування контролера безпеки AC500-S",1425,"замовлення","AC500","PLC and Automation",1,"шт","1SAS010020R0102"]
["DM221-FSE-NW","DM221-FSE-NW Мережева підтримка програмування контролера безпеки AC500-S",2574,"замовлення","AC500","PLC and Automation",1,"шт","1SAS010021R0102"]
["DM250-VCP","DM250-VCP Підтримка повної симуляції системи для Automation Builder 2.x",1197,"замовлення","AC500","PLC and Automation",1,"шт","1SAS010050R0102"]
["DM251-VCP-NW","DM251-VCP-NW Мережева підтримка повної симуляції системи для Automation Builder 2.x",2155,"замовлення","AC500","PLC and Automation",1,"шт","1SAS010051R0102"]
["DO524","DO524 Модуль дискретних виходів 32DO",220,"замовлення","AC500","PLC and Automation",1,"шт","1SAP240700R0001"]
["DO526","DO526 Модуль дискретних виходів 8DO транзистор 2A",298,"замовлення","AC500","PLC and Automation",1,"шт","1SAP240800R0001"]
["DX522","DX522 Модуль дискретний комбінований 8DI/8DO Реле",186,"замовлення","AC500","PLC and Automation",1,"шт","1SAP245200R0001"]
["DX531","DX531 Модуль дискретний комбінований 8DI/4DO Реле Вх: ~115-230В",149,"замовлення","AC500","PLC and Automation",1,"шт","1SAP245000R0001"]
["FM502-CMS","FM502-CMS Модуль вібро-діагностики 16AI/2DI/2DC/1xЕнкодер",2100,"замовлення","AC500","PLC and Automation",1,"шт","1SAP260400R0001"]
["MC502","MC502 SD Карта пам'яті 2 Гб",68,"замовлення","AC500","PLC and Automation",1,"шт","1SAP180100R0001"]
["PM572","PM572 Процесор 512кБ 2xRS-232/485",330,"замовлення","AC500","PLC and Automation",1,"шт","1SAP130200R0200"]
["PM573-ETH","PM573-ETH Процесор 512кБ 2xRS-232/485 1xEthernet",660,"замовлення","AC500","PLC and Automation",1,"шт","1SAP130300R0271"]
["PM582","PM582 Процесор 512кБ 2xRS-232/485",510,"замовлення","AC500","PLC and Automation",1,"шт","1SAP140200R0201"]
["PM583-ETH","PM583-ETH Процесор 1МБ 2xRS-232/485 1xEthernet",1065,"замовлення","AC500","PLC and Automation",1,"шт","1SAP140300R0271"]
["PM585-ETH","PM585-ETH Процесор 1МБ 2xRS-232/485 1xEthernet",1228,"замовлення","AC500","PLC and Automation",1,"шт","1SAP140500R0271"]
["PM585-MC-KIT","PM585-MC-KIT Комплект PM585-ETH+CM579-ETHCAT+TB511-ETH",1520,"замовлення","AC500","PLC and Automation",1,"шт","1SAP140500R0379"]
["PM590-ETH","PM590-ETH Процесор 2МБ 2xRS-232/485 1xEthernet",1960,"замовлення","AC500","PLC and Automation",1,"шт","1SAP150000R0271"]
["PM590-MC-KIT","PM590-MC-KIT Комплект PM590-ETH+CM579-ETHCAT+TB511-ETH+TA524",2200,"замовлення","AC500","PLC and Automation",1,"шт","1SAP150000R0379"]
["PM591-2ETH","PM591-2ETH Процесор 4МБ 2xRS-232/485 2xEthernet",2950,"замовлення","AC500","PLC and Automation",1,"шт","1SAP150100R0277"]
["PM591-ETH","PM591-ETH Процесор 4МБ 2xRS-232/485 1xEthernet",2800,"замовлення","AC500","PLC and Automation",1,"шт","1SAP150100R0271"]
["PM592-ETH","PM592-ETH Процесор 4МБ 4Гб флеш 2xRS-232/485 1xEthernet",3180,"замовлення","AC500","PLC and Automation",1,"шт","1SAP150200R0271"]
["PM595-4ETH-F","PM595-4ETH-F Процесор 16МБ 2xRS-232/485 4xEthernet",4800,"замовлення","AC500","PLC and Automation",1,"шт","1SAP155500R0279"]
["PS552-MC-E","PS552-MC-E Ліцензія на бібліотеку Motion Control",340,"замовлення","AC500","PLC and Automation",1,"шт","1SAP192100R0102"]
["PS562-SOLAR","PS562-SOLAR Ліцензія на бібліотеку Solar",340,"замовлення","AC500","PLC and Automation",1,"шт","1SAP195000R0101"]
["PS563-WATER","PS563-WATER Ліцензія на бібліотеку Water",560,"замовлення","AC500","PLC and Automation",1,"шт","1SAS030000R0101"]
["PS564-TEMPCTRL","PS564-TEMPCTRL Ліцензія на Temperature Control",790,"замовлення","AC500","PLC and Automation",1,"шт","1SAS030010R0101"]
["PS565-BACnet-ASC","PS565-BACnet-ASC Ліцензія на бібліотеку Bacnet",800,"замовлення","AC500","PLC and Automation",1,"шт","1SAP195500R0101"]
["TA512-BAS","TA512-BAS Демонстраційний стенд Basic",2500,"замовлення","AC500","PLC and Automation",1,"шт","1SAP182400R0001"]
["TA513-ADV","TA513-ADV Демонстраційний стенд Advanced",4100,"замовлення","AC500","PLC and Automation",1,"шт","1SAP182500R0001"]
["TA521","TA521 Батарея до процесора",34,"замовлення","AC500","PLC and Automation",1,"шт","1SAP180300R0001"]
["TA523","TA523 Набір маркування модулів 10 шт",27,"замовлення","AC500","PLC and Automation",1,"шт","1SAP180500R0001"]
["TA524","TA524 Заглушка слоту комунікаційного модуля",15,"замовлення","AC500","PLC and Automation",1,"шт","1SAP180600R0001"]
["TA525","TA525 Набір маркування процесор 10 шт",6,"замовлення","AC500","PLC and Automation",1,"шт","1SAP180700R0001"]
["TA526","TA526 Елементи монтажу на стіну 10 шт",6,"замовлення","AC500","PLC and Automation",1,"шт","1SAP180800R0001"]
["TA527","TA527 Роз'єм живлення процесора 5 шт",45,"замовлення","AC500","PLC and Automation",1,"шт","1SAP181100R0001"]
["TA528","TA528 Роз'єм COM1 процесора 5 шт",55,"замовлення","AC500","PLC and Automation",1,"шт","1SAP181200R0001"]
["TA532","TA532 Роз'єм модуля CM574  10 шт",95,"замовлення","AC500","PLC and Automation",1,"шт","1SAP182000R0001"]
["TA533","TA533 Роз'єм модулів CM575-DN/CM578-CN 5 шт",55,"замовлення","AC500","PLC and Automation",1,"шт","1SAP182100R0001"]
["TA534","TA534 Роз'єм для модулів CM588/CM598 5 шт",90,"замовлення","AC500","PLC and Automation",1,"шт","1SAP182200R0001"]
["TA535","TA535 Захисні кришки роз'ємів D-Sub 9 та RJ45",25,"замовлення","AC500","PLC and Automation",1,"шт","1SAP182300R0001"]
["TA536","TA536 Роз'єм для модуля DC541-CM 10 шт",124,"замовлення","AC500","PLC and Automation",1,"шт","1SAP183100R0001"]
["TA540","TA540 Захисна кришка для PM595 5 шт",10,"замовлення","AC500","PLC and Automation",1,"шт","1SAP182600R0001"]
["TA541","TA541 Батарея до процесора PM595",65,"замовлення","AC500","PLC and Automation",1,"шт","1SAP182700R0001"]
["TA543","TA543 Елементи монтажу на стіну для PM595 20 шт",10,"замовлення","AC500","PLC and Automation",1,"шт","1SAP182800R0001"]
["TB511-ETH","TB511-ETH Монтажна основа процесора 1 додатковий слот",110,"замовлення","AC500","PLC and Automation",1,"шт","1SAP111100R0270"]
["TB521-ETH","TB521-ETH Монтажна основа процесора 2 додаткові слоти",135,"замовлення","AC500","PLC and Automation",1,"шт","1SAP112100R0270"]
["TB523-2ETH","TB523-2ETH Монтажна основа процесора 2 додаткові слоти",158,"замовлення","AC500","PLC and Automation",1,"шт","1SAP112300R0277"]
["TB541-ETH","TB541-ETH Монтажна основа процесора 4 додаткові слоти",150,"замовлення","AC500","PLC and Automation",1,"шт","1SAP114100R0270"]
["TF501-CMS","TF501-CMS Монтажна основа вібро діагностики без слотів",149,"замовлення","AC500","PLC and Automation",1,"шт","1SAP117000R0271"]
["TF521-CMS","TF521-CMS Монтажна основа вібро діагностики 2 додаткові слоти",178,"замовлення","AC500","PLC and Automation",1,"шт","1SAP117200R0271"]
["TK501","TK501 Кабель програмування D-Sub/D-Sub 5м",83,"замовлення","AC500","PLC and Automation",1,"шт","1SAP180200R0001"]
["TK502","TK502 Кабель програмування D-Sub/клемник 5м",83,"замовлення","AC500","PLC and Automation",1,"шт","1SAP180200R0101"]
["TU507-ETH","TU507-ETH Монтажна основа станції В/В Ethernet гвинтові клеми",62,"замовлення","AC500","PLC and Automation",1,"шт","1SAP214200R0001"]
["TU508-ETH","TU508-ETH Монтажна основа станції В/В Ethernet пружинні клеми",62,"замовлення","AC500","PLC and Automation",1,"шт","1SAP214000R0001"]
["TU509","TU509 Монтажна основа станції В/В CAN/Profibus D-Sub гвинтові клеми",51,"замовлення","AC500","PLC and Automation",1,"шт","1SAP211000R0001"]
["TU510","TU510 Монтажна основа станції В/В CAN/Profibus D-Sub пружинні клеми",51,"замовлення","AC500","PLC and Automation",1,"шт","1SAP210800R0001"]
["TU515","TU515 Монтажна основа модулів В/В =24В гвинтові клеми",41,"замовлення","AC500","PLC and Automation",1,"шт","1SAP212200R0001"]
["TU515-DE","TU515-DE Монтажна основа TU515 Німеччина",51,"замовлення","AC500","PLC and Automation",1,"шт","1SAP212200R0101"]
["TU516","TU516 Монтажна основа модулів В/В =24В пружинні клеми",41,"замовлення","AC500","PLC and Automation",1,"шт","1SAP212000R0001"]
["TU516-DE","TU516-DE Монтажна основа TU516 Німеччина",51,"замовлення","AC500","PLC and Automation",1,"шт","1SAP212000R0101"]
["TU517","TU517 Монтажна основа станції В/В CAN/Profibus гвинтові клеми",52,"замовлення","AC500","PLC and Automation",1,"шт","1SAP211400R0001"]
["TU518","TU518 Монтажна основа станції В/В CAN/Profibus пружинні клеми",52,"замовлення","AC500","PLC and Automation",1,"шт","1SAP211200R0001"]
["TU520-ETH","TU520-ETH Монтажна основа шлюзу Profinet",84,"замовлення","AC500","PLC and Automation",1,"шт","1SAP214400R0001"]
["TU531","TU531 Монтажна основа модулів В/В ~230В гвинтові клеми",51,"замовлення","AC500","PLC and Automation",1,"шт","1SAP217200R0001"]
["TU532","TU532 Монтажна основа модулів В/В ~230В пружинні клеми",48,"замовлення","AC500","PLC and Automation",1,"шт","1SAP217000R0001"]
["TU542","TU542 Монтажна основа модулів дискретних виходів 2А",47,"замовлення","AC500","PLC and Automation",1,"шт","1SAP213200R0001"]
["TU551-CS31","TU551-CS31 Монтажна основа станції В/В CS31 гвинтові клеми",43,"замовлення","AC500","PLC and Automation",1,"шт","1SAP210600R0001"]
["TU552-CS31","TU552-CS31 Монтажна основа станції В/В CS31 пружинні клеми",43,"замовлення","AC500","PLC and Automation",1,"шт","1SAP210400R0001"]
["PM5650-2ETH","PM5650-2ETH Процесор 80MB 1xRS-232/485 2xEthernet",2700,"замовлення","AC500","PLC and Automation",1,"шт","1SAP141000R0278"]
["TB5620-2ETH","TB5620-2ETH Монтажна основа процесора 2 додаткові слоти",163,"замовлення","AC500","PLC and Automation",1,"шт","1SAP112300R0278"]
["CI521-MODTCP","CI521-MODTCP Модуль станції Modbus TCP 8DI/8DO/4AI/2AO",503,"замовлення","AC500","PLC and Automation",1,"шт","1SAP222100R0001"]
["CI522-MODTCP","CI522-MODTCP Модуль станції Modbus TCP 8DC/8DI/8DO",270,"замовлення","AC500","PLC and Automation",1,"шт","1SAP222200R0001"]
["CM589-PNIO-4","CM589-PNIO-4 Комунікаційни модуль 4xPROFINET IO Device",975,"замовлення","AC500","PLC and Automation",1,"шт","1SAP172900R0111"]
["PS5601-HA-MTCP","PS5601-HA-MTCP Ліцензія для роботи Modbus TCP HA системи",390,"замовлення","AC500","PLC and Automation",1,"шт","1SAP195400R0101"]
["PS5602-61850","PS5602-61850 Ліцензія на протокол IEC 61850 для контролера",335,"замовлення","AC500","PLC and Automation",1,"шт","1SAP195600R0101"]
["PS5603-RTVISU","PS5603-RTVISU Ліцензія на Web-візуалізацію контролера",89,"замовлення","AC500","PLC and Automation",1,"шт","1SAP195700R0101"]
["AI523-XC","AI523-XC Модуль аналогових входів 16AI",610,"замовлення","AC500-XC","PLC and Automation",1,"шт","1SAP450300R0001"]
["AI531-XC","AI531-XC Модуль аналогових входів 8AI",587,"замовлення","AC500-XC","PLC and Automation",1,"шт","1SAP450600R0001"]
["AO523-XC","AO523-XC Модуль аналогових виходів 16AO",649,"замовлення","AC500-XC","PLC and Automation",1,"шт","1SAP450200R0001"]
["AX521-XC","AX521-XC Модуль аналоговий комбінований 4AI/4AO",416,"замовлення","AC500-XC","PLC and Automation",1,"шт","1SAP450100R0001"]
["AX522-XC","AX522-XC Модуль аналоговий комбінований 8AI/8AO",632,"замовлення","AC500-XC","PLC and Automation",1,"шт","1SAP450000R0001"]
["CD522-XC","CD522-XC Модуль швидкісн Вх/Вих 2ENC 2PWM",416,"замовлення","AC500-XC","PLC and Automation",1,"шт","1SAP460300R0001"]
["CI501-PNIO-XC","CI501-PNIO-XC Модуль станції PROFINET IO 8DI/8DO/4AI/2AO",707,"замовлення","AC500-XC","PLC and Automation",1,"шт","1SAP420600R0001"]
["CI502-PNIO-XC","CI502-PNIO-XC Модуль станції PROFINET IO 8DC/8DI/8DO",376,"замовлення","AC500-XC","PLC and Automation",1,"шт","1SAP420700R0001"]
["CI504-PNIO-XC","CI504-PNIO-XC Модуль шлюза PROFINET-RS485",491,"замовлення","AC500-XC","PLC and Automation",1,"шт","1SAP421300R0001"]
["CI506-PNIO-XC","CI506-PNIO-XC Модуль шлюза PROFINET-RS485/CAN",766,"замовлення","AC500-XC","PLC and Automation",1,"шт","1SAP421500R0001"]
["CI541-DP-XC","CI541-DP-XC Модуль станції Profibus DP 8DI/8DO/4AI/2AO",566,"замовлення","AC500-XC","PLC and Automation",1,"шт","1SAP424100R0001"]
["CI542-DP-XC","CI542-DP-XC Модуль станції Profibus DP 8DC/8DI/8DO",354,"замовлення","AC500-XC","PLC and Automation",1,"шт","1SAP424200R0001"]
["CI581-CN-XC","CI581-CN-XC Модуль станції CANopen 8DI/8DO/4AI/2AO",566,"замовлення","AC500-XC","PLC and Automation",1,"шт","1SAP428100R0001"]
["CI582-CN-XC","CI582-CN-XC Модуль станції CANopen 8DC/8DI/8DO",354,"замовлення","AC500-XC","PLC and Automation",1,"шт","1SAP428200R0001"]
["CI590-CS31-HA-XC","CI590-CS31-HA-XC Модуль станції шини CS31 резервований 16DC",471,"замовлення","AC500-XC","PLC and Automation",1,"шт","1SAP421100R0001"]
["CI592-CS31-XC","CI592-CS31-XC Модуль станції шини CS31 8DI/4AI/2AO/8DC",444,"замовлення","AC500-XC","PLC and Automation",1,"шт","1SAP421200R0001"]
["CM579-PNIO-XC","CM579-PNIO-XC Комунікаційни модуль PROFINET IO RT Controller",830,"замовлення","AC500-XC","PLC and Automation",1,"шт","1SAP370901R0101"]
["CM588-CN-XC","CM588-CN-XC Комунікаційни модуль CANopen Slave",416,"замовлення","AC500-XC","PLC and Automation",1,"шт","1SAP372800R0001"]
["CM589-PNIO-XC","CM589-PNIO-XC Комунікаційни модуль PROFINET IO Device",512,"замовлення","AC500-XC","PLC and Automation",1,"шт","1SAP372900R0011"]
["CM592-DP-XC","CM592-DP-XC Комунікаційни модуль PROFIBUS DP Master",651,"замовлення","AC500-XC","PLC and Automation",1,"шт","1SAP373200R0001"]
["CM597-ETH-XC","CM597-ETH-XC Комунікаційни модуль Ethernet Modbus TCP",651,"замовлення","AC500-XC","PLC and Automation",1,"шт","1SAP373700R0001"]
["CM598-CN-XC","CM598-CN-XC Комунікаційни модуль CANopen Master",651,"замовлення","AC500-XC","PLC and Automation",1,"шт","1SAP373800R0001"]
["DA501-XC","DA501-XC Модуль комбінований 16DI/4AI/2AO/8DC",398,"замовлення","AC500-XC","PLC and Automation",1,"шт","1SAP450700R0001"]
["DC522-XC","DC522-XC Модуль дискретний конфігурований 16DC",237,"замовлення","AC500-XC","PLC and Automation",1,"шт","1SAP440600R0001"]
["DC523-XC","DC523-XC Модуль дискретний конфігурований 24DC",283,"замовлення","AC500-XC","PLC and Automation",1,"шт","1SAP440500R0001"]
["DC532-XC","DC532-XC Модуль дискретний комбінований 16DI/16DC",307,"замовлення","AC500-XC","PLC and Automation",1,"шт","1SAP440100R0001"]
["DC541-CM-XC","DC541-CM-XC Модуль швидкісних Входів/Виходів 8DC",330,"замовлення","AC500-XC","PLC and Automation",1,"шт","1SAP470000R0001"]
["DC551-CS31-XC","DC551-CS31-XC Модуль станції шини CS31 8DI/16DC",283,"замовлення","AC500-XC","PLC and Automation",1,"шт","1SAP420500R0001"]
["DI524-XC","DI524-XC Модуль дискретних входів 32DI",226,"замовлення","AC500-XC","PLC and Automation",1,"шт","1SAP440000R0001"]
["DO524-XC","DO524-XC Модуль дискретних виходів 32DO",298,"замовлення","AC500-XC","PLC and Automation",1,"шт","1SAP440700R0001"]
["DX522-XC","DX522-XC Модуль дискретний комбінований 8DI/8DO Реле",227,"замовлення","AC500-XC","PLC and Automation",1,"шт","1SAP445200R0001"]
["FM502-CMS-XC","FM502-CMS-XC Модуль вібро-діагностики 16AI/2DI/2DC/1xЕнкодер",2492,"замовлення","AC500-XC","PLC and Automation",1,"шт","1SAP460400R0001"]
["PM573-ETH-XC","PM573-ETH-XC Процесор 512кБ 2xRS-232/485 1xEthernet",867,"замовлення","AC500-XC","PLC and Automation",1,"шт","1SAP330300R0271"]
["PM582-XC","PM582-XC Процесор 512кБ 2xRS-232/485",728,"замовлення","AC500-XC","PLC and Automation",1,"шт","1SAP340200R0201"]
["PM583-ETH-XC","PM583-ETH-XC Процесор 1МБ 2xRS-232/485 1xEthernet",1391,"замовлення","AC500-XC","PLC and Automation",1,"шт","1SAP340300R0271"]
["PM591-ETH-XC","PM591-ETH-XC Процесор 4МБ 2xRS-232/485 2xEthernet",3507,"замовлення","AC500-XC","PLC and Automation",1,"шт","1SAP350100R0271"]
["PM592-ETH-XC","PM592-ETH-XC Процесор 4МБ 4Гб флеш 2xRS-232/485 1xEthernet",3983,"замовлення","AC500-XC","PLC and Automation",1,"шт","1SAP350200R0271"]
["PM595-4ETH-M-XC","PM595-4ETH-M-XC Процесор 16МБ 2xRS-232/485 4xEthernet",6224,"замовлення","AC500-XC","PLC and Automation",1,"шт","1SAP351500R0279"]
["TB511-ETH-XC","TB511-ETH-XC Монтажна основа процесора 1 додатковий слот",142,"замовлення","AC500-XC","PLC and Automation",1,"шт","1SAP311100R0270"]
["TB521-ETH-XC","TB521-ETH-XC Монтажна основа процесора 2 додаткові слоти",174,"замовлення","AC500-XC","PLC and Automation",1,"шт","1SAP312100R0270"]
["TB541-ETH-XC","TB541-ETH-XC Монтажна основа процесора 4 додаткові слоти",189,"замовлення","AC500-XC","PLC and Automation",1,"шт","1SAP314100R0270"]
["TF501-CMS-XC","TF501-CMS-XC Монтажна основа вібро діагностики без слотів",205,"замовлення","AC500-XC","PLC and Automation",1,"шт","1SAP317000R0271"]
["TF521-CMS-XC","TF521-CMS-XC Монтажна основа вібро діагностики 2 додаткові слоти",245,"замовлення","AC500-XC","PLC and Automation",1,"шт","1SAP317200R0271"]
["TU508-ETH-XC","TU508-ETH-XC Монтажна основа станції В/В Ethernet пружинні клеми",84,"замовлення","AC500-XC","PLC and Automation",1,"шт","1SAP414000R0001"]
["TU510-XC","TU510-XC Монтажна основа станції В/В CAN/Profibus D-Sub пружинні клеми",66,"замовлення","AC500-XC","PLC and Automation",1,"шт","1SAP410800R0001"]
["TU516-XC","TU516-XC Монтажна основа модулів В/В =24В пружинні клеми",54,"замовлення","AC500-XC","PLC and Automation",1,"шт","1SAP412000R0001"]
["TU518-XC","TU518-XC Монтажна основа станції В/В CAN/Profibus пружинні клеми",66,"замовлення","AC500-XC","PLC and Automation",1,"шт","1SAP411200R0001"]
["TU520-ETH-XC","TU520-ETH-XC Монтажна основа шлюзу Profinet",106,"замовлення","AC500-XC","PLC and Automation",1,"шт","1SAP414400R0001"]
["TU532-XC","TU532-XC Монтажна основа модулів В/В ~230В пружинні клеми",59,"замовлення","AC500-XC","PLC and Automation",1,"шт","1SAP417000R0001"]
["TU552-CS31-XC","TU552-CS31-XC Монтажна основа станції В/В CS31 пружинні клеми",59,"замовлення","AC500-XC","PLC and Automation",1,"шт","1SAP410400R0001"]
["CI521-MODTCP-XC","CI521-MODTCP-XC Модуль станції Modbus TCP 8DI/8DO/4AI/2AO",662,"замовлення","AC500-XC","PLC and Automation",1,"шт","1SAP422100R0001"]
["CI522-MODTCP-XC","CI522-MODTCP-XC Модуль станції Modbus TCP 8DC/8DI/8DO",363,"замовлення","AC500-XC","PLC and Automation",1,"шт","1SAP422200R0001"]
["CM589-PNIO-4-XC","CM589-PNIO-4-XC Комунікаційни модуль 4xPROFINET IO Device",1195,"замовлення","AC500-XC","PLC and Automation",1,"шт","1SAP372900R0111"]
["CM582-DP-XC","CM582-DP-XC Комунікаційни модуль PROFIBUS DP slave",510,"замовлення","AC500-XC","PLC and Automation",1,"шт","1SAP372200R0001"]
["PM554-TP","PM554-TP Процесор 128кБ 8DI/6DO =24В 1xRS485",152,"замовлення","AC500 eCo","PLC and Automation",1,"шт","1SAP120600R0001"]
["PM554-TP-ETH","PM554-TP-ETH Процесор 128кБ 8DI/6DO =24В 1xRS485 1xEthernet",268,"замовлення","AC500 eCo","PLC and Automation",1,"шт","1SAP120600R0071"]
["PM554-RP","PM554-RP Процесор 128кБ 8DI/6DO-R =24В 1xRS485",152,"замовлення","AC500 eCo","PLC and Automation",1,"шт","1SAP120700R0001"]
["PM554-RP-AC","PM554-RP-AC Процесор 128кБ 8DI/6DO-R ~220В 1xRS485",170,"замовлення","AC500 eCo","PLC and Automation",1,"шт","1SAP120800R0001"]
["PM564-TP","PM564-TP Процесор 128кБ 6DI/6DO-T/2AI/1AO =24В 1xRS485",195,"замовлення","AC500 eCo","PLC and Automation",1,"шт","1SAP120900R0001"]
["PM564-TP-ETH","PM564-TP-ETH Процесор 128кБ 6DI/6DO/2AI/1AO =24В 1xRS485 1xEthernet",307,"замовлення","AC500 eCo","PLC and Automation",1,"шт","1SAP120900R0071"]
["PM564-RP","PM564-RP Процесор 128кБ 6DI/6DO-R/2AI/1AO =24В 1xRS485",192,"замовлення","AC500 eCo","PLC and Automation",1,"шт","1SAP121000R0001"]
["PM564-RP-ETH","PM564-RP-ETH Процесор 128кБ 6DI/6DO-R/2AI/1AO =24В 1xRS485 1xEthernet",306,"замовлення","AC500 eCo","PLC and Automation",1,"шт","1SAP121000R0071"]
["PM564-RP-AC","PM564-RP-AC Процесор 128кБ 6DI/6DO-R/2AI/1AO ~220В 1xRS485",204,"замовлення","AC500 eCo","PLC and Automation",1,"шт","1SAP121100R0001"]
["PM564-RP-ETH-AC","PM564-RP-ETH-AC Процесор 128кБ 6DI/6DO-R/2AI/1AO ~220В 1xRS4851 xEthernet",313,"замовлення","AC500 eCo","PLC and Automation",1,"шт","1SAP121100R0071"]
["PM556-TP-ETH","PM556-TP-ETH Процесор 512кБ 8DI/6DO =24В 1xRS485 1xEthernet",465,"замовлення","AC500 eCo","PLC and Automation",1,"шт","1SAP121200R0071"]
["PM566-TP-ETH","PM566-TP-ETH Процесор 512кБ 6DI/2AI/6DO/1AO =24D 1xRS485 1xEthernet",508,"замовлення","AC500 eCo","PLC and Automation",1,"шт","1SAP121500R0071"]
["TA561-RTC","TA561-RTC Плата годинника реального часу",31,"замовлення","AC500 eCo","PLC and Automation",1,"шт","1SAP181400R0001"]
["TA562-RS-RTC","TA562-RS-RTC Плата годинника реального часу + інтерфейс RS-485",52,"замовлення","AC500 eCo","PLC and Automation",1,"шт","1SAP181500R0001"]
["TK506","TK506 Пристрій ізоляції лінії RS485",107,"замовлення","AC500 eCo","PLC and Automation",1,"шт","1SAP186100R0001"]
["TA574-D-T-ETH","TA574-D-T-ETH Демо набір PM554-T-ETH кабель програмування симулятор входів",380,"замовлення","AC500 eCo","PLC and Automation",1,"шт","1SAP186200R0004"]
["DI572","DI572 Модуль дискретних входів 16DI ~220В",169,"замовлення","AC500 eCo","PLC and Automation",1,"шт","1SAP230500R0000"]
["DO562","DO562 Модуль дискретних виходів 16DO",103,"замовлення","AC500 eCo","PLC and Automation",1,"шт","1SAP230900R0000"]
["DO573","DO573 Модуль дискретних виходів 16DO релейний",120,"замовлення","AC500 eCo","PLC and Automation",1,"шт","1SAP231300R0000"]
["DC562","DC562 Модуль дискретний конфігурований 16DC",114,"замовлення","AC500 eCo","PLC and Automation",1,"шт","1SAP231900R0000"]
["FM562","FM562 Модуль швидких виходів 2 канали",247,"замовлення","AC500 eCo","PLC and Automation",1,"шт","1SAP233100R0001"]
["MC503","MC503 Адаптер SD-карти пам'яті",26,"замовлення","AC500 eCo","PLC and Automation",1,"шт","1TNE968901R0100"]
["TK503","TK503 Кабель програмування USB->D-Sub 9 3м",84,"замовлення","AC500 eCo","PLC and Automation",1,"шт","1TNE968901R1100"]
["TK504","TK504 Кабель програмування USB->клемник 3м",103,"замовлення","AC500 eCo","PLC and Automation",1,"шт","1TNE968901R2100"]
["TA563-9","TA563-9 Клемний блок 9 полюсів гвинтові клеми ввід збоку",3.7,"замовлення","AC500 eCo","PLC and Automation",6,"шт","1TNE968901R3101"]
["TA563-11","TA563-11 Клемний блок 11 полюсів гвинтові клеми ввід збоку",4.5,"замовлення","AC500 eCo","PLC and Automation",6,"шт","1TNE968901R3102"]
["TA564-9","TA564-9 Клемний блок 9 полюсів гвинтові клеми ввід спереду",7,"замовлення","AC500 eCo","PLC and Automation",6,"шт","1TNE968901R3103"]
["TA564-11","TA564-11 Клемний блок 11 полюсів гвинтові клеми ввід спереду",8.5,"замовлення","AC500 eCo","PLC and Automation",6,"шт","1TNE968901R3104"]
["TA565-9","TA565-9 Клемний блок 9 полюсів пружинні клеми ввід спереду",3.7,"замовлення","AC500 eCo","PLC and Automation",6,"шт","1TNE968901R3105"]
["TA565-11","TA565-11 Клемний блок 11 полюсів пружинні клеми ввід спереду",4.5,"замовлення","AC500 eCo","PLC and Automation",6,"шт","1TNE968901R3106"]
["TA566","TA566 Аксесуар монтажу на стіну 100 шт",45,"замовлення","AC500 eCo","PLC and Automation",1,"шт","1TNE968901R3107"]
["TA570","TA570 Набір клемників живлення, COM2 та захисних кришок",40,"замовлення","AC500 eCo","PLC and Automation",1,"шт","1TNE968901R3203"]
["TA562-RS485","TA562-RS485 Плата порту RS485",36,"замовлення","AC500 eCo","PLC and Automation",1,"шт","1TNE968901R4300"]
["AI561","AI561 Модуль аналогових входів 4AI",122,"замовлення","AC500 eCo","PLC and Automation",1,"шт","1TNE968902R1101"]
["AI562","AI562 Модуль аналогових входів 2AI термометри опору",180,"замовлення","AC500 eCo","PLC and Automation",1,"шт","1TNE968902R1102"]
["AI563","AI563 Модуль аналогових входів 4AI термопари",178,"замовлення","AC500 eCo","PLC and Automation",1,"шт","1TNE968902R1103"]
["AO561","AO561 Модуль аналогових виходів 2AO",145,"замовлення","AC500 eCo","PLC and Automation",1,"шт","1TNE968902R1201"]
["AX561","AX561 Модуль аналоговий комбінований 4AI/2AO",180,"замовлення","AC500 eCo","PLC and Automation",1,"шт","1TNE968902R1301"]
["DC561","DC561 Модуль дискретний конфігурований 16DC",124,"замовлення","AC500 eCo","PLC and Automation",1,"шт","1TNE968902R2001"]
["DI561","DI561 Модуль дискретних входів 8DI",58,"замовлення","AC500 eCo","PLC and Automation",1,"шт","1TNE968902R2101"]
["DI562","DI562 Модуль дискретних входів 16DI",80,"замовлення","AC500 eCo","PLC and Automation",1,"шт","1TNE968902R2102"]
["DI571","DI571 Модуль дискретних входів 8DI ~230В",115,"замовлення","AC500 eCo","PLC and Automation",1,"шт","1TNE968902R2103"]
["DO561","DO561 Модуль дискретних виходів 8DO",73,"замовлення","AC500 eCo","PLC and Automation",1,"шт","1TNE968902R2201"]
["DO571","DO571 Модуль дискретних виходів 8DO-Реле",86,"замовлення","AC500 eCo","PLC and Automation",1,"шт","1TNE968902R2202"]
["DO572","DO572 Модуль дискретних виходів 8DO-Triac",125,"замовлення","AC500 eCo","PLC and Automation",1,"шт","1TNE968902R2203"]
["DX561","DX561 Модуль дискретний комбінований 8DI/8DO",103,"замовлення","AC500 eCo","PLC and Automation",1,"шт","1TNE968902R2301"]
["DX571","DX571 Модуль дискретний комбінований 8DI/8DO-Реле",110,"замовлення","AC500 eCo","PLC and Automation",1,"шт","1TNE968902R2302"]
["TA571-SIM","TA571-SIM Симулятр дискретних входів 6 каналів",64,"замовлення","AC500 eCo","PLC and Automation",1,"шт","1TNE968903R0203"]
["SM560-S","SM560-S Процесор функціональної безпеки",950,"замовлення","AC500-S","PLC and Automation",1,"шт","1SAP280000R0001"]
["DI581-S","DI581-S Модуль дискретних входів функціональної безпеки",393,"замовлення","AC500-S","PLC and Automation",1,"шт","1SAP284000R0001"]
["DX581-S","DX581-S Модуль дискретний комбінований функціональної безпеки",442,"замовлення","AC500-S","PLC and Automation",1,"шт","1SAP284100R0001"]
["AI581-S","AI581-S Модуль аналогових входів функціональної безпеки",470,"замовлення","AC500-S","PLC and Automation",1,"шт","1SAP282000R0001"]
["TU582-S","TU582-S Монтажна основа модулів функціональної безпеки пружинні клеми",56,"замовлення","AC500-S","PLC and Automation",1,"шт","1SAP281200R0001"]
["SM560-S-XC","SM560-S-XC Процесор функціональної безпеки",1170,"замовлення","AC500-S","PLC and Automation",1,"шт","1SAP380000R0001"]
["DI581-S-XC","DI581-S-XC Модуль дискретних входів функціональної безпеки",514,"замовлення","AC500-S","PLC and Automation",1,"шт","1SAP484000R0001"]
["DX581-S-XC","DX581-S-XC Модуль дискретний комбінований функціональної безпеки",573,"замовлення","AC500-S","PLC and Automation",1,"шт","1SAP484100R0001"]
["AI581-S-XC","AI581-S-XC Модуль аналогових входів функціональної безпеки",612,"замовлення","AC500-S","PLC and Automation",1,"шт","1SAP482000R0001"]
["TU582-S-XC","TU582-S-XC Монтажна основа модулів функціональної безпеки пружинні клеми",71,"замовлення","AC500-S","PLC and Automation",1,"шт","1SAP481200R0001"]
["SM560-S-FD-1","SM560-S-FD-1 Процесор функціональної безпеки",1264,"замовлення","AC500-S","PLC and Automation",1,"шт","1SAP286000R0001"]
["SM560-S-FD-4","SM560-S-FD-4 Процесор функціональної безпеки",2295,"замовлення","AC500-S","PLC and Automation",1,"шт","1SAP286100R0001"]
["SM560-S-FD-1-XC","SM560-S-FD-1-XC Процесор функціональної безпеки",1583,"замовлення","AC500-S","PLC and Automation",1,"шт","1SAP386000R0001"]
["SM560-S-FD-4-XC","SM560-S-FD-4-XC Процесор функціональної безпеки",2802,"замовлення","AC500-S","PLC and Automation",1,"шт","1SAP386100R0001"]
["CP604","CP604 Панель кольорова 4\"3 eCo",320,"замовлення","CP600 eCo","PLC and Automation",1,"шт","1SAP504100R0001"]
["CP604-B","CP604-B Панель кольорова 4\"3 eCo",320,"замовлення","CP600 eCo","PLC and Automation",1,"шт","1SAP504100R2001"]
["CP607","CP607 Панель кольорова 7\"0 eCo",510,"замовлення","CP600 eCo","PLC and Automation",1,"шт","1SAP507100R0001"]
["CP607-B","CP607-B Панель кольорова 7\"0 eCo",510,"замовлення","CP600 eCo","PLC and Automation",1,"шт","1SAP507100R2001"]
["CP610","CP610 Панель кольорова 10\"1 eCo",885,"замовлення","CP600 eCo","PLC and Automation",1,"шт","1SAP510100R0001"]
["CP610-B","CP610-B Панель кольорова 10\"1 eCo",885,"замовлення","CP600 eCo","PLC and Automation",1,"шт","1SAP510100R2001"]
["CP620","CP620 Панель кольорова 4\"3",452,"замовлення","CP600","PLC and Automation",1,"шт","1SAP520100R0001"]
["CP620-WEB","CP620-WEB Панель веб-клієнт 4\"3 кольорова",469,"замовлення","CP600","PLC and Automation",1,"шт","1SAP520200R0001"]
["CP630","CP630 Панель кольорова 5\"7",696,"замовлення","CP600","PLC and Automation",1,"шт","1SAP530100R0001"]
["CP630-WEB","CP630-WEB Панель веб-клієнт 5\"7 кольорова",722,"замовлення","CP600","PLC and Automation",1,"шт","1SAP530200R0001"]
["CP635","CP635 Панель кольорова 7\"0",938,"замовлення","CP600","PLC and Automation",1,"шт","1SAP535100R0001"]
["CP635-B","CP635-B Панель кольорова 7\"0 без маркування ABB",938,"замовлення","CP600","PLC and Automation",1,"шт","1SAP535100R2001"]
["CP635-WEB","CP635-WEB Панель веб-клієнт 7\"0 кольорова",955,"замовлення","CP600","PLC and Automation",1,"шт","1SAP535200R0001"]
["CP651","CP651 Панель кольорова 10\"4",1660,"замовлення","CP600","PLC and Automation",1,"шт","1SAP551100R0001"]
["CP651-WEB","CP651-WEB Панель веб-клієнт 10\"4 кольорова",1779,"замовлення","CP600","PLC and Automation",1,"шт","1SAP551200R0001"]
["CP661","CP661 Панель кольорова 12\"1",2078,"замовлення","CP600","PLC and Automation",1,"шт","1SAP561100R0001"]
["CP661-WEB","CP661-WEB Панель веб-клієнт 12\"1 кольорова",2149,"замовлення","CP600","PLC and Automation",1,"шт","1SAP561200R0001"]
["CP665","CP665 Панель кольорова 13\"3",2264,"замовлення","CP600","PLC and Automation",1,"шт","1SAP565100R0001"]
["CP665-WEB","CP665-WEB Панель веб-клієнт 13\"3 кольорова",2378,"замовлення","CP600","PLC and Automation",1,"шт","1SAP565200R0001"]
["CP676","CP676 Панель кольорова 15\"",2522,"замовлення","CP600","PLC and Automation",1,"шт","1SAP576100R0001"]
["CP676-WEB","CP676-WEB Панель веб-клієнт 15\" кольорова",2608,"замовлення","CP600","PLC and Automation",1,"шт","1SAP576200R0001"]
["CP635-FB","CP635-FB Панель кольорова 7\"0 нержавіюча сталь блакитна",3155,"замовлення","CP600","PLC and Automation",1,"шт","1SAP535110R6001"]
["CP635-FW","CP635-FW Панель кольорова 7\"0 нержавіюча сталь біла",3155,"замовлення","CP600","PLC and Automation",1,"шт","1SAP535110R1001"]
["PB610","PB610 Ліцензія на середовище розробки Panel Builder 600",86,"замовлення","CP600","PLC and Automation",1,"шт","1SAP500900R0101"]
["PB610-R","PB610-R Panel Builder 600 Windows Runtime ліцензія",983,"замовлення","CP600","PLC and Automation",1,"шт","1SAP500901R0101"]
["CP6605","CP6605 Панель кольорова 4\"3 Pro",829,"замовлення","CP600 Pro","PLC and Automation",1,"шт","1SAP560510R0001"]
["CP6607","CP6607 Панель кольорова 7\"0 Pro",1385,"замовлення","CP600 Pro","PLC and Automation",1,"шт","1SAP560710R0001"]
["CP6610","CP6610 Панель кольорова 10\"1 Pro",2163,"замовлення","CP600 Pro","PLC and Automation",1,"шт","1SAP561010R0001"]
["CP6615","CP6615 Панель кольорова 15\"6 Pro",3386,"замовлення","CP600 Pro","PLC and Automation",1,"шт","1SAP561510R0001"]
["CP6621","CP6621 Панель кольорова 21\"5 Pro",4450,"замовлення","CP600 Pro","PLC and Automation",1,"шт","1SAP562110R0001"]
["TK681","TK681 Кабель для RS232 AC500",38,"замовлення","CP600","PLC and Automation",1,"шт","1SAP500981R0001"]
["TK682","TK682 Кабель RS485 для AC500 eCo",38,"замовлення","CP600","PLC and Automation",1,"шт","1SAP500982R0001"]
["07AC91-AD","07AC91-AD Адаптер станції AC31",1215,"замовлення","AC500","PLC and Automation",1,"шт","1SAP800000R0010"]
["07AC91-AD2","07AC91-AD2 Адаптер станції AC31",1215,"замовлення","AC500","PLC and Automation",1,"шт","1SAP800100R0010"]
["07AI91-AD","07AI91-AD Адаптер станції AC31",1105,"замовлення","AC500","PLC and Automation",1,"шт","1SAP800200R0010"]
["07DC91-AD","07DC91-AD Адаптер станції AC31",828,"замовлення","AC500","PLC and Automation",1,"шт","1SAP800300R0010"]
["DC501-CS31-AD","DC501-CS31-AD Адаптер станції AC31",828,"замовлення","AC500","PLC and Automation",1,"шт","1SAP800400R0010"]
["07DC92-AD","07DC92-AD Адаптер станції AC31",824,"замовлення","AC500","PLC and Automation",1,"шт","1SAP800500R0010"]
["07KT98-ARC-DP-AD","07KT98-ARC-DP-AD Адаптер контролера AC31",5522,"замовлення","AC500","PLC and Automation",1,"шт","1SAP801100R0062"]
["07KT98-ARC-ETH-AD","07KT98-ARC-ETH-AD Адаптер контролера AC31",5634,"замовлення","AC500","PLC and Automation",1,"шт","1SAP801200R0067"]
["07KT98-ETH-DP-AD","07KT98-ETH-DP-AD Адаптер контролера AC31",5854,"замовлення","AC500","PLC and Automation",1,"шт","1SAP801300R0072"]
["07KT98-ARC-AD","07KT98-ARC-AD Адаптер контролера AC31",4197,"замовлення","AC500","PLC and Automation",1,"шт","1SAP801400R0060"]
["07TC90","07TC90 AC31 Adapter Адаптер станції AC31",442,"замовлення","AC500","PLC and Automation",1,"шт","1SAP810100R0010"]
["07TC92","07TC92 AC31 Adapter Адаптер станції AC31",481,"замовлення","AC500","PLC and Automation",1,"шт","1SAP810200R0010"]
["07TC91","07TC91 AC31 Adapter Адаптер станції AC31",386,"замовлення","AC500","PLC and Automation",1,"шт","1SAP810500R0010"]
["TB5600-2ETH","TB5600-2ETH Монтажна основа процесора без слотів",103,"замовлення","AC500","PLC and Automation",1,"шт","1SAP110300R0278"]
["TB5610-2ETH","TB5610-2ETH Монтажна основа процесора 1 слот",135,"замовлення","AC500","PLC and Automation",1,"шт","1SAP111300R0278"]
["TB5640-2ETH","TB5640-2ETH Монтажна основа процесора 4 слоти",170,"замовлення","AC500","PLC and Automation",1,"шт","1SAP114300R0278"]
["PM5630-2ETH","PM5630-2ETH Процесор 8MB 2xEth RS485 CAN",1206,"замовлення","AC500","PLC and Automation",1,"шт","1SAP131000R0278"]
["PM5670-2ETH","PM5670-2ETH Процесор 160MB 2xEth RS485 CAN",4181,"замовлення","AC500","PLC and Automation",1,"шт","1SAP151000R0278"]
["PM5675-2ETH","PM5675-2ETH Процесор 160MB 2xEth RS485 CAN",4514,"замовлення","AC500","PLC and Automation",1,"шт","1SAP151500R0278"]
["07LE90","07LE90: Літієва батарея для ПЛК",150,"замовлення","AC500","PLC and Automation",1,"шт","GJR5250700R0001"]
["TB5600-2ETH-XC","TB5600-2ETH-XC Монтажна основа процесора без слотів",135,"замовлення","AC500-XC","PLC and Automation",1,"шт","1SAP310300R0278"]
["TB5610-2ETH-XC","TB5610-2ETH-XC Монтажна основа процесора 1 слот",180,"замовлення","AC500-XC","PLC and Automation",1,"шт","1SAP311300R0278"]
["TB5620-2ETH-XC","TB5620-2ETH-XC Монтажна основа процесора 2 додаткові слоти",207,"замовлення","AC500-XC","PLC and Automation",1,"шт","1SAP312300R0278"]
["PM5630-2ETH-XC","PM5630-2ETH-XC Процесор 8MB 2xEth RS485 CAN",1680,"замовлення","AC500-XC","PLC and Automation",1,"шт","1SAP331000R0278"]
["PM5650-2ETH-XC","PM5650-2ETH-XC Процесор 80MB 2xEth RS485 CAN",3410,"замовлення","AC500-XC","PLC and Automation",1,"шт","1SAP341000R0278"]
["PM5675-2ETH-XC","PM5675-2ETH-XC Процесор 160MB 2xEth RS485 CAN",5980,"замовлення","AC500-XC","PLC and Automation",1,"шт","1SAP351500R0278"]
["TB5640-2ETH-XC","TB5640-2ETH-XC Монтажна основа процесора 4 слоти",225,"замовлення","AC500-XC","PLC and Automation",1,"шт","1SAP314300R0278"]
["TU516-H","TU516-H Монтажна основа модулів В/В =24В пружинні клеми",88,"замовлення","AC500","PLC and Automation",1,"шт","1SAP215000R0001"]
["PS5604-KNX","PS5604-KNX Ліцензія на бібліотеку KNX",290,"замовлення","AC500","PLC and Automation",1,"шт","1SAP195800R0101"]

{"sheet":"Корзина","index":1,"n_rows":51,"n_cols":13,"rows_kept":51,"cut":false,"hidden":false,"merged":[[48,0,48,8],[48,10,48,11],[49,0,49,8],[49,10,49,11],[50,0,50,8],[50,10,50,11]]}
[]
[]
[]
[]
[null,null,"Знижка",0]
[]
[]
["№","Тип/код","Опис","Артикул","Серія","Товарна група","Кільк","Ед.изм.","Ціна в євро без ПДВ","Сума в євро без ПДВ",null,"Ціна зі знижкою в євро без ПДВ","Сума зі знижкою в євро без ПДВ"]
[1,null,null,null,null,null,null,null,null,{"$f":"IFERROR(I9*G9,\" - \")","v":0},null,{"$f":"IFERROR(ROUND(I9*(1-$D$5),2),\" - \")","v":0},{"$f":"IFERROR(L9*G9,\" - \")","v":0}]
[2,null,null,null,null,null,null,null,null,{"$f":"IFERROR(I10*G10,\" - \")","v":0},null,{"$f":"IFERROR(ROUND(I10*(1-$D$5),2),\" - \")","v":0},{"$f":"IFERROR(L10*G10,\" - \")","v":0}]
[3,null,null,null,null,null,null,null,null,0,null,0,0]
[4,null,null,null,null,null,null,null,null,0,null,0,0]
[5,null,null,null,null,null,null,null,null,0,null,0,0]
[6,null,null,null,null,null,null,null,null,0,null,0,0]
[7,null,null,null,null,null,null,null,null,0,null,0,0]
[8,null,null,null,null,null,null,null,null,0,null,0,0]
[9,null,null,null,null,null,null,null,null,0,null,0,0]
[10,null,null,null,null,null,null,null,null,0,null,0,0]
[11,null,null,null,null,null,null,null,null,0,null,0,0]
[12,null,null,null,null,null,null,null,null,0,null,0,0]
[13,null,null,null,null,null,null,null,null,0,null,0,0]
[14,null,null,null,null,null,null,null,null,0,null,0,0]
[15,null,null,null,null,null,null,null,null,0,null,0,0]
[16,null,null,null,null,null,null,null,null,0,null,0,0]
[17,null,null,null,null,null,null,null,null,0,null,0,0]
[18,null,null,null,null,null,null,null,null,0,null,0,0]
[19,null,null,null,null,null,null,null,null,0,null,0,0]
[20,null,null,null,null,null,null,null,null,0,null,0,0]
[21,null,null,null,null,null,null,null,null,0,null,0,0]
[22,null,null,null,null,null,null,null,null,0,null,0,0]
[23,null,null,null,null,null,null,null,null,0,null,0,0]
[24,null,null,null,null,null,null,null,null,0,null,0,0]
[25,null,null,null,null,null,null,null,null,0,null,0,0]
[26,null,null,null,null,null,null,null,null,0,null,0,0]
[27,null,null,null,null,null,null,null,null,0,null,0,0]
[28,null,null,null,null,null,null,null,null,0,null,0,0]
[29,null,null,null,null,null,null,null,null,0,null,0,0]
[30,null,null,null,null,null,null,null,null,0,null,0,0]
[31,null,null,null,null,null,null,null,null,0,null,0,0]
[32,null,null,null,null,null,null,null,null,0,null,0,0]
[33,null,null,null,null,null,null,null,null,0,null,0,0]
[34,null,null,null,null,null,null,null,null,0,null,0,0]
[35,null,null,null,null,null,null,null,null,0,null,0,0]
[36,null,null,null,null,null,null,null,null,0,null,0,0]
[37,null,null,null,null,null,null,null,null,0,null,0,0]
[38,null,null,null,null,null,null,null,null,0,null,0,0]
[39,null,null,null,null,null,null,null,null,0,null,0,0]
[40,null,null,null,null,null,null,null,null,0,null,0,0]
["Сума в євро без ПДВ:",null,null,null,null,null,null,null,null,{"$f":"SUM(J9:J48)","v":0},"Сума зі знижкою в євро без ПДВ:",null,{"$f":"SUM(M9:M48)","v":0}]
["ПДВ:",null,null,null,null,null,null,null,null,{"$f":"ROUND(J49*0.2,2)","v":0},"ПДВ:",null,{"$f":"ROUND(M49*0.2,2)","v":0}]
["Всього в євро з ПДВ:",null,null,null,null,null,null,null,null,{"$f":"SUM(J49:J50)","v":0},"Всього зі знижкою в євро з ПДВ:",null,{"$f":"SUM(M49:M50)","v":0}]

{"sheet":"КП","index":2,"n_rows":78,"n_cols":7,"rows_kept":78,"cut":false,"hidden":false,"merged":[[77,5,77,6],[56,0,56,6],[58,0,58,6],[59,0,59,6],[61,0,61,6],[62,0,62,6],[64,0,64,6],[65,0,65,6],[67,0,67,6],[70,0,70,6],[71,0,71,6],[76,5,76,6],[55,0,55,6],[0,0,0,6],[1,0,1,6],[2,0,2,6],[3,0,3,6],[4,0,4,6],[7,0,7,6],[49,0,49,5],[50,0,50,5],[51,0,51,5],[53,0,53,6],[54,0,54,6]]}
["Комерційна пропозиція для"]
["Замовник"]
["на поставку обладнання для"]
["Кінцевий замовник"]
[]
["Дата:",null,{"$f":"TODAY()","v":"2019-02-06"},null,null,null,"м. Київ"]
[]
["Обсяг та вартість поставки:"]
["Поз.","Тип/код","Опис","Примітки/код заказа","К-ть","Ціна за од., EUR без ПДВ","Ціна всього, EUR без ПДВ"]
[1,{"$f":"IFERROR(IF(ISBLANK(Корзина!B9),\" - \",Корзина!B9),\" - \")","v":" - "},{"$f":"IFERROR(IF(ISBLANK(Корзина!C9),\" - \",Корзина!C9),\" - \")","v":" - "},{"$f":"IFERROR(IF(ISBLANK(Корзина!D9),\" - \",Корзина!D9),\" - \")","v":" - "},{"$f":"IFERROR(IF(Корзина!G9=\"\",\"\",Корзина!G9),\" - \")","v":""},{"$f":"IFERROR(Корзина!L9,\" -\")","v":0},{"$f":"IFERROR(F10*E10,\" - \")","v":" - "}]
[2,{"$f":"IFERROR(IF(ISBLANK(Корзина!B10),\" - \",Корзина!B10),\" - \")","v":" - "},{"$f":"IFERROR(IF(ISBLANK(Корзина!C10),\" - \",Корзина!C10),\" - \")","v":" - "},{"$f":"IFERROR(IF(ISBLANK(Корзина!D10),\" - \",Корзина!D10),\" - \")","v":" - "},{"$f":"IFERROR(IF(Корзина!G10=\"\",\"\",Корзина!G10),\" - \")","v":""},{"$f":"IFERROR(Корзина!L10,\" -\")","v":0},{"$f":"IFERROR(F11*E11,\" - \")","v":" - "}]
[3,{"$f":"IFERROR(IF(ISBLANK(Корзина!B11),\" - \",Корзина!B11),\" - \")","v":" - "},{"$f":"IFERROR(IF(ISBLANK(Корзина!C11),\" - \",Корзина!C11),\" - \")","v":" - "},{"$f":"IFERROR(IF(ISBLANK(Корзина!D11),\" - \",Корзина!D11),\" - \")","v":" - "},{"$f":"IFERROR(IF(Корзина!G11=\"\",\"\",Корзина!G11),\" - \")","v":""},{"$f":"IFERROR(Корзина!L11,\" -\")","v":0}," - "]
[4,{"$f":"IFERROR(IF(ISBLANK(Корзина!B12),\" - \",Корзина!B12),\" - \")","v":" - "},{"$f":"IFERROR(IF(ISBLANK(Корзина!C12),\" - \",Корзина!C12),\" - \")","v":" - "},{"$f":"IFERROR(IF(ISBLANK(Корзина!D12),\" - \",Корзина!D12),\" - \")","v":" - "},{"$f":"IFERROR(IF(Корзина!G12=\"\",\"\",Корзина!G12),\" - \")","v":""},{"$f":"IFERROR(Корзина!L12,\" -\")","v":0}," - "]
[5,{"$f":"IFERROR(IF(ISBLANK(Корзина!B13),\" - \",Корзина!B13),\" - \")","v":" - "},{"$f":"IFERROR(IF(ISBLANK(Корзина!C13),\" - \",Корзина!C13),\" - \")","v":" - "},{"$f":"IFERROR(IF(ISBLANK(Корзина!D13),\" - \",Корзина!D13),\" - \")","v":" - "},{"$f":"IFERROR(IF(Корзина!G13=\"\",\"\",Корзина!G13),\" - \")","v":""},{"$f":"IFERROR(Корзина!L13,\" -\")","v":0}," - "]
[6,{"$f":"IFERROR(IF(ISBLANK(Корзина!B14),\" - \",Корзина!B14),\" - \")","v":" - "},{"$f":"IFERROR(IF(ISBLANK(Корзина!C14),\" - \",Корзина!C14),\" - \")","v":" - "},{"$f":"IFERROR(IF(ISBLANK(Корзина!D14),\" - \",Корзина!D14),\" - \")","v":" - "},{"$f":"IFERROR(IF(Корзина!G14=\"\",\"\",Корзина!G14),\" - \")","v":""},{"$f":"IFERROR(Корзина!L14,\" -\")","v":0}," - "]
[7,{"$f":"IFERROR(IF(ISBLANK(Корзина!B15),\" - \",Корзина!B15),\" - \")","v":" - "},{"$f":"IFERROR(IF(ISBLANK(Корзина!C15),\" - \",Корзина!C15),\" - \")","v":" - "},{"$f":"IFERROR(IF(ISBLANK(Корзина!D15),\" - \",Корзина!D15),\" - \")","v":" - "},{"$f":"IFERROR(IF(Корзина!G15=\"\",\"\",Корзина!G15),\" - \")","v":""},{"$f":"IFERROR(Корзина!L15,\" -\")","v":0}," - "]
[8,{"$f":"IFERROR(IF(ISBLANK(Корзина!B16),\" - \",Корзина!B16),\" - \")","v":" - "},{"$f":"IFERROR(IF(ISBLANK(Корзина!C16),\" - \",Корзина!C16),\" - \")","v":" - "},{"$f":"IFERROR(IF(ISBLANK(Корзина!D16),\" - \",Корзина!D16),\" - \")","v":" - "},{"$f":"IFERROR(IF(Корзина!G16=\"\",\"\",Корзина!G16),\" - \")","v":""},{"$f":"IFERROR(Корзина!L16,\" -\")","v":0}," - "]
[9,{"$f":"IFERROR(IF(ISBLANK(Корзина!B17),\" - \",Корзина!B17),\" - \")","v":" - "},{"$f":"IFERROR(IF(ISBLANK(Корзина!C17),\" - \",Корзина!C17),\" - \")","v":" - "},{"$f":"IFERROR(IF(ISBLANK(Корзина!D17),\" - \",Корзина!D17),\" - \")","v":" - "},{"$f":"IFERROR(IF(Корзина!G17=\"\",\"\",Корзина!G17),\" - \")","v":""},{"$f":"IFERROR(Корзина!L17,\" -\")","v":0}," - "]
[10,{"$f":"IFERROR(IF(ISBLANK(Корзина!B18),\" - \",Корзина!B18),\" - \")","v":" - "},{"$f":"IFERROR(IF(ISBLANK(Корзина!C18),\" - \",Корзина!C18),\" - \")","v":" - "},{"$f":"IFERROR(IF(ISBLANK(Корзина!D18),\" - \",Корзина!D18),\" - \")","v":" - "},{"$f":"IFERROR(IF(Корзина!G18=\"\",\"\",Корзина!G18),\" - \")","v":""},{"$f":"IFERROR(Корзина!L18,\" -\")","v":0}," - "]
[11,{"$f":"IFERROR(IF(ISBLANK(Корзина!B19),\" - \",Корзина!B19),\" - \")","v":" - "},{"$f":"IFERROR(IF(ISBLANK(Корзина!C19),\" - \",Корзина!C19),\" - \")","v":" - "},{"$f":"IFERROR(IF(ISBLANK(Корзина!D19),\" - \",Корзина!D19),\" - \")","v":" - "},{"$f":"IFERROR(IF(Корзина!G19=\"\",\"\",Корзина!G19),\" - \")","v":""},{"$f":"IFERROR(Корзина!L19,\" -\")","v":0}," - "]
[12,{"$f":"IFERROR(IF(ISBLANK(Корзина!B20),\" - \",Корзина!B20),\" - \")","v":" - "},{"$f":"IFERROR(IF(ISBLANK(Корзина!C20),\" - \",Корзина!C20),\" - \")","v":" - "},{"$f":"IFERROR(IF(ISBLANK(Корзина!D20),\" - \",Корзина!D20),\" - \")","v":" - "},{"$f":"IFERROR(IF(Корзина!G20=\"\",\"\",Корзина!G20),\" - \")","v":""},{"$f":"IFERROR(Корзина!L20,\" -\")","v":0}," - "]
[13,{"$f":"IFERROR(IF(ISBLANK(Корзина!B21),\" - \",Корзина!B21),\" - \")","v":" - "},{"$f":"IFERROR(IF(ISBLANK(Корзина!C21),\" - \",Корзина!C21),\" - \")","v":" - "},{"$f":"IFERROR(IF(ISBLANK(Корзина!D21),\" - \",Корзина!D21),\" - \")","v":" - "},{"$f":"IFERROR(IF(Корзина!G21=\"\",\"\",Корзина!G21),\" - \")","v":""},{"$f":"IFERROR(Корзина!L21,\" -\")","v":0}," - "]
[14,{"$f":"IFERROR(IF(ISBLANK(Корзина!B22),\" - \",Корзина!B22),\" - \")","v":" - "},{"$f":"IFERROR(IF(ISBLANK(Корзина!C22),\" - \",Корзина!C22),\" - \")","v":" - "},{"$f":"IFERROR(IF(ISBLANK(Корзина!D22),\" - \",Корзина!D22),\" - \")","v":" - "},{"$f":"IFERROR(IF(Корзина!G22=\"\",\"\",Корзина!G22),\" - \")","v":""},{"$f":"IFERROR(Корзина!L22,\" -\")","v":0}," - "]
[15,{"$f":"IFERROR(IF(ISBLANK(Корзина!B23),\" - \",Корзина!B23),\" - \")","v":" - "},{"$f":"IFERROR(IF(ISBLANK(Корзина!C23),\" - \",Корзина!C23),\" - \")","v":" - "},{"$f":"IFERROR(IF(ISBLANK(Корзина!D23),\" - \",Корзина!D23),\" - \")","v":" - "},{"$f":"IFERROR(IF(Корзина!G23=\"\",\"\",Корзина!G23),\" - \")","v":""},{"$f":"IFERROR(Корзина!L23,\" -\")","v":0}," - "]
[16,{"$f":"IFERROR(IF(ISBLANK(Корзина!B24),\" - \",Корзина!B24),\" - \")","v":" - "},{"$f":"IFERROR(IF(ISBLANK(Корзина!C24),\" - \",Корзина!C24),\" - \")","v":" - "},{"$f":"IFERROR(IF(ISBLANK(Корзина!D24),\" - \",Корзина!D24),\" - \")","v":" - "},{"$f":"IFERROR(IF(Корзина!G24=\"\",\"\",Корзина!G24),\" - \")","v":""},{"$f":"IFERROR(Корзина!L24,\" -\")","v":0}," - "]
[17,{"$f":"IFERROR(IF(ISBLANK(Корзина!B25),\" - \",Корзина!B25),\" - \")","v":" - "},{"$f":"IFERROR(IF(ISBLANK(Корзина!C25),\" - \",Корзина!C25),\" - \")","v":" - "},{"$f":"IFERROR(IF(ISBLANK(Корзина!D25),\" - \",Корзина!D25),\" - \")","v":" - "},{"$f":"IFERROR(IF(Корзина!G25=\"\",\"\",Корзина!G25),\" - \")","v":""},{"$f":"IFERROR(Корзина!L25,\" -\")","v":0}," - "]
[18,{"$f":"IFERROR(IF(ISBLANK(Корзина!B26),\" - \",Корзина!B26),\" - \")","v":" - "},{"$f":"IFERROR(IF(ISBLANK(Корзина!C26),\" - \",Корзина!C26),\" - \")","v":" - "},{"$f":"IFERROR(IF(ISBLANK(Корзина!D26),\" - \",Корзина!D26),\" - \")","v":" - "},{"$f":"IFERROR(IF(Корзина!G26=\"\",\"\",Корзина!G26),\" - \")","v":""},{"$f":"IFERROR(Корзина!L26,\" -\")","v":0}," - "]
[19,{"$f":"IFERROR(IF(ISBLANK(Корзина!B27),\" - \",Корзина!B27),\" - \")","v":" - "},{"$f":"IFERROR(IF(ISBLANK(Корзина!C27),\" - \",Корзина!C27),\" - \")","v":" - "},{"$f":"IFERROR(IF(ISBLANK(Корзина!D27),\" - \",Корзина!D27),\" - \")","v":" - "},{"$f":"IFERROR(IF(Корзина!G27=\"\",\"\",Корзина!G27),\" - \")","v":""},{"$f":"IFERROR(Корзина!L27,\" -\")","v":0}," - "]
[20,{"$f":"IFERROR(IF(ISBLANK(Корзина!B28),\" - \",Корзина!B28),\" - \")","v":" - "},{"$f":"IFERROR(IF(ISBLANK(Корзина!C28),\" - \",Корзина!C28),\" - \")","v":" - "},{"$f":"IFERROR(IF(ISBLANK(Корзина!D28),\" - \",Корзина!D28),\" - \")","v":" - "},{"$f":"IFERROR(IF(Корзина!G28=\"\",\"\",Корзина!G28),\" - \")","v":""},{"$f":"IFERROR(Корзина!L28,\" -\")","v":0}," - "]
[21,{"$f":"IFERROR(IF(ISBLANK(Корзина!B29),\" - \",Корзина!B29),\" - \")","v":" - "},{"$f":"IFERROR(IF(ISBLANK(Корзина!C29),\" - \",Корзина!C29),\" - \")","v":" - "},{"$f":"IFERROR(IF(ISBLANK(Корзина!D29),\" - \",Корзина!D29),\" - \")","v":" - "},{"$f":"IFERROR(IF(Корзина!G29=\"\",\"\",Корзина!G29),\" - \")","v":""},{"$f":"IFERROR(Корзина!L29,\" -\")","v":0}," - "]
[22,{"$f":"IFERROR(IF(ISBLANK(Корзина!B30),\" - \",Корзина!B30),\" - \")","v":" - "},{"$f":"IFERROR(IF(ISBLANK(Корзина!C30),\" - \",Корзина!C30),\" - \")","v":" - "},{"$f":"IFERROR(IF(ISBLANK(Корзина!D30),\" - \",Корзина!D30),\" - \")","v":" - "},{"$f":"IFERROR(IF(Корзина!G30=\"\",\"\",Корзина!G30),\" - \")","v":""},{"$f":"IFERROR(Корзина!L30,\" -\")","v":0}," - "]
[23,{"$f":"IFERROR(IF(ISBLANK(Корзина!B31),\" - \",Корзина!B31),\" - \")","v":" - "},{"$f":"IFERROR(IF(ISBLANK(Корзина!C31),\" - \",Корзина!C31),\" - \")","v":" - "},{"$f":"IFERROR(IF(ISBLANK(Корзина!D31),\" - \",Корзина!D31),\" - \")","v":" - "},{"$f":"IFERROR(IF(Корзина!G31=\"\",\"\",Корзина!G31),\" - \")","v":""},{"$f":"IFERROR(Корзина!L31,\" -\")","v":0}," - "]
[24,{"$f":"IFERROR(IF(ISBLANK(Корзина!B32),\" - \",Корзина!B32),\" - \")","v":" - "},{"$f":"IFERROR(IF(ISBLANK(Корзина!C32),\" - \",Корзина!C32),\" - \")","v":" - "},{"$f":"IFERROR(IF(ISBLANK(Корзина!D32),\" - \",Корзина!D32),\" - \")","v":" - "},{"$f":"IFERROR(IF(Корзина!G32=\"\",\"\",Корзина!G32),\" - \")","v":""},{"$f":"IFERROR(Корзина!L32,\" -\")","v":0}," - "]
[25,{"$f":"IFERROR(IF(ISBLANK(Корзина!B33),\" - \",Корзина!B33),\" - \")","v":" - "},{"$f":"IFERROR(IF(ISBLANK(Корзина!C33),\" - \",Корзина!C33),\" - \")","v":" - "},{"$f":"IFERROR(IF(ISBLANK(Корзина!D33),\" - \",Корзина!D33),\" - \")","v":" - "},{"$f":"IFERROR(IF(Корзина!G33=\"\",\"\",Корзина!G33),\" - \")","v":""},{"$f":"IFERROR(Корзина!L33,\" -\")","v":0}," - "]
[26,{"$f":"IFERROR(IF(ISBLANK(Корзина!B34),\" - \",Корзина!B34),\" - \")","v":" - "},{"$f":"IFERROR(IF(ISBLANK(Корзина!C34),\" - \",Корзина!C34),\" - \")","v":" - "},{"$f":"IFERROR(IF(ISBLANK(Корзина!D34),\" - \",Корзина!D34),\" - \")","v":" - "},{"$f":"IFERROR(IF(Корзина!G34=\"\",\"\",Корзина!G34),\" - \")","v":""},{"$f":"IFERROR(Корзина!L34,\" -\")","v":0}," - "]
[27,{"$f":"IFERROR(IF(ISBLANK(Корзина!B35),\" - \",Корзина!B35),\" - \")","v":" - "},{"$f":"IFERROR(IF(ISBLANK(Корзина!C35),\" - \",Корзина!C35),\" - \")","v":" - "},{"$f":"IFERROR(IF(ISBLANK(Корзина!D35),\" - \",Корзина!D35),\" - \")","v":" - "},{"$f":"IFERROR(IF(Корзина!G35=\"\",\"\",Корзина!G35),\" - \")","v":""},{"$f":"IFERROR(Корзина!L35,\" -\")","v":0}," - "]
[28,{"$f":"IFERROR(IF(ISBLANK(Корзина!B36),\" - \",Корзина!B36),\" - \")","v":" - "},{"$f":"IFERROR(IF(ISBLANK(Корзина!C36),\" - \",Корзина!C36),\" - \")","v":" - "},{"$f":"IFERROR(IF(ISBLANK(Корзина!D36),\" - \",Корзина!D36),\" - \")","v":" - "},{"$f":"IFERROR(IF(Корзина!G36=\"\",\"\",Корзина!G36),\" - \")","v":""},{"$f":"IFERROR(Корзина!L36,\" -\")","v":0}," - "]
[29,{"$f":"IFERROR(IF(ISBLANK(Корзина!B37),\" - \",Корзина!B37),\" - \")","v":" - "},{"$f":"IFERROR(IF(ISBLANK(Корзина!C37),\" - \",Корзина!C37),\" - \")","v":" - "},{"$f":"IFERROR(IF(ISBLANK(Корзина!D37),\" - \",Корзина!D37),\" - \")","v":" - "},{"$f":"IFERROR(IF(Корзина!G37=\"\",\"\",Корзина!G37),\" - \")","v":""},{"$f":"IFERROR(Корзина!L37,\" -\")","v":0}," - "]
[30,{"$f":"IFERROR(IF(ISBLANK(Корзина!B38),\" - \",Корзина!B38),\" - \")","v":" - "},{"$f":"IFERROR(IF(ISBLANK(Корзина!C38),\" - \",Корзина!C38),\" - \")","v":" - "},{"$f":"IFERROR(IF(ISBLANK(Корзина!D38),\" - \",Корзина!D38),\" - \")","v":" - "},{"$f":"IFERROR(IF(Корзина!G38=\"\",\"\",Корзина!G38),\" - \")","v":""},{"$f":"IFERROR(Корзина!L38,\" -\")","v":0}," - "]
[31,{"$f":"IFERROR(IF(ISBLANK(Корзина!B39),\" - \",Корзина!B39),\" - \")","v":" - "},{"$f":"IFERROR(IF(ISBLANK(Корзина!C39),\" - \",Корзина!C39),\" - \")","v":" - "},{"$f":"IFERROR(IF(ISBLANK(Корзина!D39),\" - \",Корзина!D39),\" - \")","v":" - "},{"$f":"IFERROR(IF(Корзина!G39=\"\",\"\",Корзина!G39),\" - \")","v":""},{"$f":"IFERROR(Корзина!L39,\" -\")","v":0}," - "]
[32,{"$f":"IFERROR(IF(ISBLANK(Корзина!B40),\" - \",Корзина!B40),\" - \")","v":" - "},{"$f":"IFERROR(IF(ISBLANK(Корзина!C40),\" - \",Корзина!C40),\" - \")","v":" - "},{"$f":"IFERROR(IF(ISBLANK(Корзина!D40),\" - \",Корзина!D40),\" - \")","v":" - "},{"$f":"IFERROR(IF(Корзина!G40=\"\",\"\",Корзина!G40),\" - \")","v":""},{"$f":"IFERROR(Корзина!L40,\" -\")","v":0}," - "]
[33,{"$f":"IFERROR(IF(ISBLANK(Корзина!B41),\" - \",Корзина!B41),\" - \")","v":" - "},{"$f":"IFERROR(IF(ISBLANK(Корзина!C41),\" - \",Корзина!C41),\" - \")","v":" - "},{"$f":"IFERROR(IF(ISBLANK(Корзина!D41),\" - \",Корзина!D41),\" - \")","v":" - "},{"$f":"IFERROR(IF(Корзина!G41=\"\",\"\",Корзина!G41),\" - \")","v":""},{"$f":"IFERROR(Корзина!L41,\" -\")","v":0}," - "]
[34,{"$f":"IFERROR(IF(ISBLANK(Корзина!B42),\" - \",Корзина!B42),\" - \")","v":" - "},{"$f":"IFERROR(IF(ISBLANK(Корзина!C42),\" - \",Корзина!C42),\" - \")","v":" - "},{"$f":"IFERROR(IF(ISBLANK(Корзина!D42),\" - \",Корзина!D42),\" - \")","v":" - "},{"$f":"IFERROR(IF(Корзина!G42=\"\",\"\",Корзина!G42),\" - \")","v":""},{"$f":"IFERROR(Корзина!L42,\" -\")","v":0}," - "]
[35,{"$f":"IFERROR(IF(ISBLANK(Корзина!B43),\" - \",Корзина!B43),\" - \")","v":" - "},{"$f":"IFERROR(IF(ISBLANK(Корзина!C43),\" - \",Корзина!C43),\" - \")","v":" - "},{"$f":"IFERROR(IF(ISBLANK(Корзина!D43),\" - \",Корзина!D43),\" - \")","v":" - "},{"$f":"IFERROR(IF(Корзина!G43=\"\",\"\",Корзина!G43),\" - \")","v":""},{"$f":"IFERROR(Корзина!L43,\" -\")","v":0}," - "]
[36,{"$f":"IFERROR(IF(ISBLANK(Корзина!B44),\" - \",Корзина!B44),\" - \")","v":" - "},{"$f":"IFERROR(IF(ISBLANK(Корзина!C44),\" - \",Корзина!C44),\" - \")","v":" - "},{"$f":"IFERROR(IF(ISBLANK(Корзина!D44),\" - \",Корзина!D44),\" - \")","v":" - "},{"$f":"IFERROR(IF(Корзина!G44=\"\",\"\",Корзина!G44),\" - \")","v":""},{"$f":"IFERROR(Корзина!L44,\" -\")","v":0}," - "]
[37,{"$f":"IFERROR(IF(ISBLANK(Корзина!B45),\" - \",Корзина!B45),\" - \")","v":" - "},{"$f":"IFERROR(IF(ISBLANK(Корзина!C45),\" - \",Корзина!C45),\" - \")","v":" - "},{"$f":"IFERROR(IF(ISBLANK(Корзина!D45),\" - \",Корзина!D45),\" - \")","v":" - "},{"$f":"IFERROR(IF(Корзина!G45=\"\",\"\",Корзина!G45),\" - \")","v":""},{"$f":"IFERROR(Корзина!L45,\" -\")","v":0}," - "]
[38,{"$f":"IFERROR(IF(ISBLANK(Корзина!B46),\" - \",Корзина!B46),\" - \")","v":" - "},{"$f":"IFERROR(IF(ISBLANK(Корзина!C46),\" - \",Корзина!C46),\" - \")","v":" - "},{"$f":"IFERROR(IF(ISBLANK(Корзина!D46),\" - \",Корзина!D46),\" - \")","v":" - "},{"$f":"IFERROR(IF(Корзина!G46=\"\",\"\",Корзина!G46),\" - \")","v":""},{"$f":"IFERROR(Корзина!L46,\" -\")","v":0}," - "]
[39,{"$f":"IFERROR(IF(ISBLANK(Корзина!B47),\" - \",Корзина!B47),\" - \")","v":" - "},{"$f":"IFERROR(IF(ISBLANK(Корзина!C47),\" - \",Корзина!C47),\" - \")","v":" - "},{"$f":"IFERROR(IF(ISBLANK(Корзина!D47),\" - \",Корзина!D47),\" - \")","v":" - "},{"$f":"IFERROR(IF(Корзина!G47=\"\",\"\",Корзина!G47),\" - \")","v":""},{"$f":"IFERROR(Корзина!L47,\" -\")","v":0}," - "]
[40,{"$f":"IFERROR(IF(ISBLANK(Корзина!B48),\" - \",Корзина!B48),\" - \")","v":" - "},{"$f":"IFERROR(IF(ISBLANK(Корзина!C48),\" - \",Корзина!C48),\" - \")","v":" - "},{"$f":"IFERROR(IF(ISBLANK(Корзина!D48),\" - \",Корзина!D48),\" - \")","v":" - "},{"$f":"IFERROR(IF(Корзина!G48=\"\",\"\",Корзина!G48),\" - \")","v":""},{"$f":"IFERROR(Корзина!L48,\" -\")","v":0}," - "]
["Сума без ПДВ:",null,null,null,null,null,{"$f":"SUM(G10:G49)","v":0}]
["ПДВ:",null,null,null,null,null,{"$f":"ROUND(G50*0.2,2)","v":0}]
["Всього з ПДВ:",null,null,null,null,null,{"$f":"G50+G51","v":0}]
[]
["Умови платежу:"]
["\nВідповідно до рамкового контракту, якщо дія цього контракту поширюється на продукцію з цієї пропозиції або"]
["– 50% — протягом 5 (п'яти) банківских днів після підписання контракту;\n– 50% — протягом 5 (п'яти) банківских днів після повідомлення про готовність обладнання до відвантаження з завода-виробника."]
["Платежі здійснюються в гривнях за офіцийним курсом НБУ євро/грн."]
[]
["Умови поставки/надання:"]
["EXW склад Бровари, відповідно до INCOTERMS 2010"]
[]
["Термін поставки:"]
["__ тижнів після отримання першої оплати "]
[]
["Гарантия:"]
["__ місяців після введення в експлуатацію, але не більше ніж __ місяців після відвантаження."]
[]
["Пропозиція діє до:"]
[null,null,{"$f":"C6+30","v":"2019-03-08"}]
[]
["Інші суттєві умови:"]
[]
[]
[]
["Контактна особа:"]
[]
[null,null,null,null,"моб.: ","+380 67 465 XX XX"]
[null,null,null,null,"офіс: ","+380 44 495 22 11"]

{"sheet":"Заявка","index":3,"n_rows":59,"n_cols":8,"rows_kept":59,"cut":false,"hidden":false,"merged":[[53,0,53,6],[54,0,54,6],[55,0,55,6],[0,0,0,7],[1,0,1,7],[2,0,2,7],[4,0,4,1],[6,0,6,7],[11,0,11,7]]}
["Заявка"]
["на поставку обладнання АББ"]
[]
[]
["Замовник: ",null,"___________________________"]
[]
[]
["Дата:",{"$f":"TODAY()","v":"2019-02-06"},null,null,null,null,null,"м. __________"]
[]
[]
[]
["Обсяг поставки:"]
["Поз.","Тип/код","Опис","Примітки/код заказа","Товарна группа","К-ть","Ціна за од., EUR без ПДВ","Ціна всього, EUR без ПДВ"]
[1,{"$f":"IFERROR(IF(ISBLANK(Корзина!B9),\" - \",Корзина!B9),\" - \")","v":" - "},{"$f":"IFERROR(IF(ISBLANK(Корзина!C9),\" - \",Корзина!C9),\" - \")","v":" - "},{"$f":"IFERROR(IF(ISBLANK(Корзина!D9),\" - \",Корзина!D9),\" - \")","v":" - "},{"$f":"IFERROR(IF(ISBLANK(Корзина!F9),\" - \",Корзина!F9),\" - \")","v":" - "},{"$f":"IFERROR(IF(Корзина!G9=\"\",\"\",Корзина!G9),\" - \")","v":""},{"$f":"IFERROR(Корзина!I9,\" - \")","v":0},{"$f":"IFERROR(G14*F14,\" - \")","v":" - "}]
[2,{"$f":"IFERROR(IF(ISBLANK(Корзина!B10),\" - \",Корзина!B10),\" - \")","v":" - "},{"$f":"IFERROR(IF(ISBLANK(Корзина!C10),\" - \",Корзина!C10),\" - \")","v":" - "},{"$f":"IFERROR(IF(ISBLANK(Корзина!D10),\" - \",Корзина!D10),\" - \")","v":" - "},{"$f":"IFERROR(IF(ISBLANK(Корзина!F10),\" - \",Корзина!F10),\" - \")","v":" - "},{"$f":"IFERROR(IF(Корзина!G10=\"\",\"\",Корзина!G10),\" - \")","v":""},{"$f":"IFERROR(Корзина!I10,\" - \")","v":0},{"$f":"IFERROR(G15*F15,\" - \")","v":" - "}]
[3,{"$f":"IFERROR(IF(ISBLANK(Корзина!B11),\" - \",Корзина!B11),\" - \")","v":" - "},{"$f":"IFERROR(IF(ISBLANK(Корзина!C11),\" - \",Корзина!C11),\" - \")","v":" - "},{"$f":"IFERROR(IF(ISBLANK(Корзина!D11),\" - \",Корзина!D11),\" - \")","v":" - "},{"$f":"IFERROR(IF(ISBLANK(Корзина!F11),\" - \",Корзина!F11),\" - \")","v":" - "},{"$f":"IFERROR(IF(Корзина!G11=\"\",\"\",Корзина!G11),\" - \")","v":""},{"$f":"IFERROR(Корзина!I11,\" - \")","v":0}," - "]
[4,{"$f":"IFERROR(IF(ISBLANK(Корзина!B12),\" - \",Корзина!B12),\" - \")","v":" - "},{"$f":"IFERROR(IF(ISBLANK(Корзина!C12),\" - \",Корзина!C12),\" - \")","v":" - "},{"$f":"IFERROR(IF(ISBLANK(Корзина!D12),\" - \",Корзина!D12),\" - \")","v":" - "},{"$f":"IFERROR(IF(ISBLANK(Корзина!F12),\" - \",Корзина!F12),\" - \")","v":" - "},{"$f":"IFERROR(IF(Корзина!G12=\"\",\"\",Корзина!G12),\" - \")","v":""},{"$f":"IFERROR(Корзина!I12,\" - \")","v":0}," - "]
[5,{"$f":"IFERROR(IF(ISBLANK(Корзина!B13),\" - \",Корзина!B13),\" - \")","v":" - "},{"$f":"IFERROR(IF(ISBLANK(Корзина!C13),\" - \",Корзина!C13),\" - \")","v":" - "},{"$f":"IFERROR(IF(ISBLANK(Корзина!D13),\" - \",Корзина!D13),\" - \")","v":" - "},{"$f":"IFERROR(IF(ISBLANK(Корзина!F13),\" - \",Корзина!F13),\" - \")","v":" - "},{"$f":"IFERROR(IF(Корзина!G13=\"\",\"\",Корзина!G13),\" - \")","v":""},{"$f":"IFERROR(Корзина!I13,\" - \")","v":0}," - "]
[6,{"$f":"IFERROR(IF(ISBLANK(Корзина!B14),\" - \",Корзина!B14),\" - \")","v":" - "},{"$f":"IFERROR(IF(ISBLANK(Корзина!C14),\" - \",Корзина!C14),\" - \")","v":" - "},{"$f":"IFERROR(IF(ISBLANK(Корзина!D14),\" - \",Корзина!D14),\" - \")","v":" - "},{"$f":"IFERROR(IF(ISBLANK(Корзина!F14),\" - \",Корзина!F14),\" - \")","v":" - "},{"$f":"IFERROR(IF(Корзина!G14=\"\",\"\",Корзина!G14),\" - \")","v":""},{"$f":"IFERROR(Корзина!I14,\" - \")","v":0}," - "]
[7,{"$f":"IFERROR(IF(ISBLANK(Корзина!B15),\" - \",Корзина!B15),\" - \")","v":" - "},{"$f":"IFERROR(IF(ISBLANK(Корзина!C15),\" - \",Корзина!C15),\" - \")","v":" - "},{"$f":"IFERROR(IF(ISBLANK(Корзина!D15),\" - \",Корзина!D15),\" - \")","v":" - "},{"$f":"IFERROR(IF(ISBLANK(Корзина!F15),\" - \",Корзина!F15),\" - \")","v":" - "},{"$f":"IFERROR(IF(Корзина!G15=\"\",\"\",Корзина!G15),\" - \")","v":""},{"$f":"IFERROR(Корзина!I15,\" - \")","v":0}," - "]
[8,{"$f":"IFERROR(IF(ISBLANK(Корзина!B16),\" - \",Корзина!B16),\" - \")","v":" - "},{"$f":"IFERROR(IF(ISBLANK(Корзина!C16),\" - \",Корзина!C16),\" - \")","v":" - "},{"$f":"IFERROR(IF(ISBLANK(Корзина!D16),\" - \",Корзина!D16),\" - \")","v":" - "},{"$f":"IFERROR(IF(ISBLANK(Корзина!F16),\" - \",Корзина!F16),\" - \")","v":" - "},{"$f":"IFERROR(IF(Корзина!G16=\"\",\"\",Корзина!G16),\" - \")","v":""},{"$f":"IFERROR(Корзина!I16,\" - \")","v":0}," - "]
[9,{"$f":"IFERROR(IF(ISBLANK(Корзина!B17),\" - \",Корзина!B17),\" - \")","v":" - "},{"$f":"IFERROR(IF(ISBLANK(Корзина!C17),\" - \",Корзина!C17),\" - \")","v":" - "},{"$f":"IFERROR(IF(ISBLANK(Корзина!D17),\" - \",Корзина!D17),\" - \")","v":" - "},{"$f":"IFERROR(IF(ISBLANK(Корзина!F17),\" - \",Корзина!F17),\" - \")","v":" - "},{"$f":"IFERROR(IF(Корзина!G17=\"\",\"\",Корзина!G17),\" - \")","v":""},{"$f":"IFERROR(Корзина!I17,\" - \")","v":0}," - "]
[10,{"$f":"IFERROR(IF(ISBLANK(Корзина!B18),\" - \",Корзина!B18),\" - \")","v":" - "},{"$f":"IFERROR(IF(ISBLANK(Корзина!C18),\" - \",Корзина!C18),\" - \")","v":" - "},{"$f":"IFERROR(IF(ISBLANK(Корзина!D18),\" - \",Корзина!D18),\" - \")","v":" - "},{"$f":"IFERROR(IF(ISBLANK(Корзина!F18),\" - \",Корзина!F18),\" - \")","v":" - "},{"$f":"IFERROR(IF(Корзина!G18=\"\",\"\",Корзина!G18),\" - \")","v":""},{"$f":"IFERROR(Корзина!I18,\" - \")","v":0}," - "]
[11,{"$f":"IFERROR(IF(ISBLANK(Корзина!B19),\" - \",Корзина!B19),\" - \")","v":" - "},{"$f":"IFERROR(IF(ISBLANK(Корзина!C19),\" - \",Корзина!C19),\" - \")","v":" - "},{"$f":"IFERROR(IF(ISBLANK(Корзина!D19),\" - \",Корзина!D19),\" - \")","v":" - "},{"$f":"IFERROR(IF(ISBLANK(Корзина!F19),\" - \",Корзина!F19),\" - \")","v":" - "},{"$f":"IFERROR(IF(Корзина!G19=\"\",\"\",Корзина!G19),\" - \")","v":""},{"$f":"IFERROR(Корзина!I19,\" - \")","v":0}," - "]
[12,{"$f":"IFERROR(IF(ISBLANK(Корзина!B20),\" - \",Корзина!B20),\" - \")","v":" - "},{"$f":"IFERROR(IF(ISBLANK(Корзина!C20),\" - \",Корзина!C20),\" - \")","v":" - "},{"$f":"IFERROR(IF(ISBLANK(Корзина!D20),\" - \",Корзина!D20),\" - \")","v":" - "},{"$f":"IFERROR(IF(ISBLANK(Корзина!F20),\" - \",Корзина!F20),\" - \")","v":" - "},{"$f":"IFERROR(IF(Корзина!G20=\"\",\"\",Корзина!G20),\" - \")","v":""},{"$f":"IFERROR(Корзина!I20,\" - \")","v":0}," - "]
[13,{"$f":"IFERROR(IF(ISBLANK(Корзина!B21),\" - \",Корзина!B21),\" - \")","v":" - "},{"$f":"IFERROR(IF(ISBLANK(Корзина!C21),\" - \",Корзина!C21),\" - \")","v":" - "},{"$f":"IFERROR(IF(ISBLANK(Корзина!D21),\" - \",Корзина!D21),\" - \")","v":" - "},{"$f":"IFERROR(IF(ISBLANK(Корзина!F21),\" - \",Корзина!F21),\" - \")","v":" - "},{"$f":"IFERROR(IF(Корзина!G21=\"\",\"\",Корзина!G21),\" - \")","v":""},{"$f":"IFERROR(Корзина!I21,\" - \")","v":0}," - "]
[14,{"$f":"IFERROR(IF(ISBLANK(Корзина!B22),\" - \",Корзина!B22),\" - \")","v":" - "},{"$f":"IFERROR(IF(ISBLANK(Корзина!C22),\" - \",Корзина!C22),\" - \")","v":" - "},{"$f":"IFERROR(IF(ISBLANK(Корзина!D22),\" - \",Корзина!D22),\" - \")","v":" - "},{"$f":"IFERROR(IF(ISBLANK(Корзина!F22),\" - \",Корзина!F22),\" - \")","v":" - "},{"$f":"IFERROR(IF(Корзина!G22=\"\",\"\",Корзина!G22),\" - \")","v":""},{"$f":"IFERROR(Корзина!I22,\" - \")","v":0}," - "]
[15,{"$f":"IFERROR(IF(ISBLANK(Корзина!B23),\" - \",Корзина!B23),\" - \")","v":" - "},{"$f":"IFERROR(IF(ISBLANK(Корзина!C23),\" - \",Корзина!C23),\" - \")","v":" - "},{"$f":"IFERROR(IF(ISBLANK(Корзина!D23),\" - \",Корзина!D23),\" - \")","v":" - "},{"$f":"IFERROR(IF(ISBLANK(Корзина!F23),\" - \",Корзина!F23),\" - \")","v":" - "},{"$f":"IFERROR(IF(Корзина!G23=\"\",\"\",Корзина!G23),\" - \")","v":""},{"$f":"IFERROR(Корзина!I23,\" - \")","v":0}," - "]
[16,{"$f":"IFERROR(IF(ISBLANK(Корзина!B24),\" - \",Корзина!B24),\" - \")","v":" - "},{"$f":"IFERROR(IF(ISBLANK(Корзина!C24),\" - \",Корзина!C24),\" - \")","v":" - "},{"$f":"IFERROR(IF(ISBLANK(Корзина!D24),\" - \",Корзина!D24),\" - \")","v":" - "},{"$f":"IFERROR(IF(ISBLANK(Корзина!F24),\" - \",Корзина!F24),\" - \")","v":" - "},{"$f":"IFERROR(IF(Корзина!G24=\"\",\"\",Корзина!G24),\" - \")","v":""},{"$f":"IFERROR(Корзина!I24,\" - \")","v":0}," - "]
[17,{"$f":"IFERROR(IF(ISBLANK(Корзина!B25),\" - \",Корзина!B25),\" - \")","v":" - "},{"$f":"IFERROR(IF(ISBLANK(Корзина!C25),\" - \",Корзина!C25),\" - \")","v":" - "},{"$f":"IFERROR(IF(ISBLANK(Корзина!D25),\" - \",Корзина!D25),\" - \")","v":" - "},{"$f":"IFERROR(IF(ISBLANK(Корзина!F25),\" - \",Корзина!F25),\" - \")","v":" - "},{"$f":"IFERROR(IF(Корзина!G25=\"\",\"\",Корзина!G25),\" - \")","v":""},{"$f":"IFERROR(Корзина!I25,\" - \")","v":0}," - "]
[18,{"$f":"IFERROR(IF(ISBLANK(Корзина!B26),\" - \",Корзина!B26),\" - \")","v":" - "},{"$f":"IFERROR(IF(ISBLANK(Корзина!C26),\" - \",Корзина!C26),\" - \")","v":" - "},{"$f":"IFERROR(IF(ISBLANK(Корзина!D26),\" - \",Корзина!D26),\" - \")","v":" - "},{"$f":"IFERROR(IF(ISBLANK(Корзина!F26),\" - \",Корзина!F26),\" - \")","v":" - "},{"$f":"IFERROR(IF(Корзина!G26=\"\",\"\",Корзина!G26),\" - \")","v":""},{"$f":"IFERROR(Корзина!I26,\" - \")","v":0}," - "]
[19,{"$f":"IFERROR(IF(ISBLANK(Корзина!B27),\" - \",Корзина!B27),\" - \")","v":" - "},{"$f":"IFERROR(IF(ISBLANK(Корзина!C27),\" - \",Корзина!C27),\" - \")","v":" - "},{"$f":"IFERROR(IF(ISBLANK(Корзина!D27),\" - \",Корзина!D27),\" - \")","v":" - "},{"$f":"IFERROR(IF(ISBLANK(Корзина!F27),\" - \",Корзина!F27),\" - \")","v":" - "},{"$f":"IFERROR(IF(Корзина!G27=\"\",\"\",Корзина!G27),\" - \")","v":""},{"$f":"IFERROR(Корзина!I27,\" - \")","v":0}," - "]
[20,{"$f":"IFERROR(IF(ISBLANK(Корзина!B28),\" - \",Корзина!B28),\" - \")","v":" - "},{"$f":"IFERROR(IF(ISBLANK(Корзина!C28),\" - \",Корзина!C28),\" - \")","v":" - "},{"$f":"IFERROR(IF(ISBLANK(Корзина!D28),\" - \",Корзина!D28),\" - \")","v":" - "},{"$f":"IFERROR(IF(ISBLANK(Корзина!F28),\" - \",Корзина!F28),\" - \")","v":" - "},{"$f":"IFERROR(IF(Корзина!G28=\"\",\"\",Корзина!G28),\" - \")","v":""},{"$f":"IFERROR(Корзина!I28,\" - \")","v":0}," - "]
[21,{"$f":"IFERROR(IF(ISBLANK(Корзина!B29),\" - \",Корзина!B29),\" - \")","v":" - "},{"$f":"IFERROR(IF(ISBLANK(Корзина!C29),\" - \",Корзина!C29),\" - \")","v":" - "},{"$f":"IFERROR(IF(ISBLANK(Корзина!D29),\" - \",Корзина!D29),\" - \")","v":" - "},{"$f":"IFERROR(IF(ISBLANK(Корзина!F29),\" - \",Корзина!F29),\" - \")","v":" - "},{"$f":"IFERROR(IF(Корзина!G29=\"\",\"\",Корзина!G29),\" - \")","v":""},{"$f":"IFERROR(Корзина!I29,\" - \")","v":0}," - "]
[22,{"$f":"IFERROR(IF(ISBLANK(Корзина!B30),\" - \",Корзина!B30),\" - \")","v":" - "},{"$f":"IFERROR(IF(ISBLANK(Корзина!C30),\" - \",Корзина!C30),\" - \")","v":" - "},{"$f":"IFERROR(IF(ISBLANK(Корзина!D30),\" - \",Корзина!D30),\" - \")","v":" - "},{"$f":"IFERROR(IF(ISBLANK(Корзина!F30),\" - \",Корзина!F30),\" - \")","v":" - "},{"$f":"IFERROR(IF(Корзина!G30=\"\",\"\",Корзина!G30),\" - \")","v":""},{"$f":"IFERROR(Корзина!I30,\" - \")","v":0}," - "]
[23,{"$f":"IFERROR(IF(ISBLANK(Корзина!B31),\" - \",Корзина!B31),\" - \")","v":" - "},{"$f":"IFERROR(IF(ISBLANK(Корзина!C31),\" - \",Корзина!C31),\" - \")","v":" - "},{"$f":"IFERROR(IF(ISBLANK(Корзина!D31),\" - \",Корзина!D31),\" - \")","v":" - "},{"$f":"IFERROR(IF(ISBLANK(Корзина!F31),\" - \",Корзина!F31),\" - \")","v":" - "},{"$f":"IFERROR(IF(Корзина!G31=\"\",\"\",Корзина!G31),\" - \")","v":""},{"$f":"IFERROR(Корзина!I31,\" - \")","v":0}," - "]
[24,{"$f":"IFERROR(IF(ISBLANK(Корзина!B32),\" - \",Корзина!B32),\" - \")","v":" - "},{"$f":"IFERROR(IF(ISBLANK(Корзина!C32),\" - \",Корзина!C32),\" - \")","v":" - "},{"$f":"IFERROR(IF(ISBLANK(Корзина!D32),\" - \",Корзина!D32),\" - \")","v":" - "},{"$f":"IFERROR(IF(ISBLANK(Корзина!F32),\" - \",Корзина!F32),\" - \")","v":" - "},{"$f":"IFERROR(IF(Корзина!G32=\"\",\"\",Корзина!G32),\" - \")","v":""},{"$f":"IFERROR(Корзина!I32,\" - \")","v":0}," - "]
[25,{"$f":"IFERROR(IF(ISBLANK(Корзина!B33),\" - \",Корзина!B33),\" - \")","v":" - "},{"$f":"IFERROR(IF(ISBLANK(Корзина!C33),\" - \",Корзина!C33),\" - \")","v":" - "},{"$f":"IFERROR(IF(ISBLANK(Корзина!D33),\" - \",Корзина!D33),\" - \")","v":" - "},{"$f":"IFERROR(IF(ISBLANK(Корзина!F33),\" - \",Корзина!F33),\" - \")","v":" - "},{"$f":"IFERROR(IF(Корзина!G33=\"\",\"\",Корзина!G33),\" - \")","v":""},{"$f":"IFERROR(Корзина!I33,\" - \")","v":0}," - "]
[26,{"$f":"IFERROR(IF(ISBLANK(Корзина!B34),\" - \",Корзина!B34),\" - \")","v":" - "},{"$f":"IFERROR(IF(ISBLANK(Корзина!C34),\" - \",Корзина!C34),\" - \")","v":" - "},{"$f":"IFERROR(IF(ISBLANK(Корзина!D34),\" - \",Корзина!D34),\" - \")","v":" - "},{"$f":"IFERROR(IF(ISBLANK(Корзина!F34),\" - \",Корзина!F34),\" - \")","v":" - "},{"$f":"IFERROR(IF(Корзина!G34=\"\",\"\",Корзина!G34),\" - \")","v":""},{"$f":"IFERROR(Корзина!I34,\" - \")","v":0}," - "]
[27,{"$f":"IFERROR(IF(ISBLANK(Корзина!B35),\" - \",Корзина!B35),\" - \")","v":" - "},{"$f":"IFERROR(IF(ISBLANK(Корзина!C35),\" - \",Корзина!C35),\" - \")","v":" - "},{"$f":"IFERROR(IF(ISBLANK(Корзина!D35),\" - \",Корзина!D35),\" - \")","v":" - "},{"$f":"IFERROR(IF(ISBLANK(Корзина!F35),\" - \",Корзина!F35),\" - \")","v":" - "},{"$f":"IFERROR(IF(Корзина!G35=\"\",\"\",Корзина!G35),\" - \")","v":""},{"$f":"IFERROR(Корзина!I35,\" - \")","v":0}," - "]
[28,{"$f":"IFERROR(IF(ISBLANK(Корзина!B36),\" - \",Корзина!B36),\" - \")","v":" - "},{"$f":"IFERROR(IF(ISBLANK(Корзина!C36),\" - \",Корзина!C36),\" - \")","v":" - "},{"$f":"IFERROR(IF(ISBLANK(Корзина!D36),\" - \",Корзина!D36),\" - \")","v":" - "},{"$f":"IFERROR(IF(ISBLANK(Корзина!F36),\" - \",Корзина!F36),\" - \")","v":" - "},{"$f":"IFERROR(IF(Корзина!G36=\"\",\"\",Корзина!G36),\" - \")","v":""},{"$f":"IFERROR(Корзина!I36,\" - \")","v":0}," - "]
[29,{"$f":"IFERROR(IF(ISBLANK(Корзина!B37),\" - \",Корзина!B37),\" - \")","v":" - "},{"$f":"IFERROR(IF(ISBLANK(Корзина!C37),\" - \",Корзина!C37),\" - \")","v":" - "},{"$f":"IFERROR(IF(ISBLANK(Корзина!D37),\" - \",Корзина!D37),\" - \")","v":" - "},{"$f":"IFERROR(IF(ISBLANK(Корзина!F37),\" - \",Корзина!F37),\" - \")","v":" - "},{"$f":"IFERROR(IF(Корзина!G37=\"\",\"\",Корзина!G37),\" - \")","v":""},{"$f":"IFERROR(Корзина!I37,\" - \")","v":0}," - "]
[30,{"$f":"IFERROR(IF(ISBLANK(Корзина!B38),\" - \",Корзина!B38),\" - \")","v":" - "},{"$f":"IFERROR(IF(ISBLANK(Корзина!C38),\" - \",Корзина!C38),\" - \")","v":" - "},{"$f":"IFERROR(IF(ISBLANK(Корзина!D38),\" - \",Корзина!D38),\" - \")","v":" - "},{"$f":"IFERROR(IF(ISBLANK(Корзина!F38),\" - \",Корзина!F38),\" - \")","v":" - "},{"$f":"IFERROR(IF(Корзина!G38=\"\",\"\",Корзина!G38),\" - \")","v":""},{"$f":"IFERROR(Корзина!I38,\" - \")","v":0}," - "]
[31,{"$f":"IFERROR(IF(ISBLANK(Корзина!B39),\" - \",Корзина!B39),\" - \")","v":" - "},{"$f":"IFERROR(IF(ISBLANK(Корзина!C39),\" - \",Корзина!C39),\" - \")","v":" - "},{"$f":"IFERROR(IF(ISBLANK(Корзина!D39),\" - \",Корзина!D39),\" - \")","v":" - "},{"$f":"IFERROR(IF(ISBLANK(Корзина!F39),\" - \",Корзина!F39),\" - \")","v":" - "},{"$f":"IFERROR(IF(Корзина!G39=\"\",\"\",Корзина!G39),\" - \")","v":""},{"$f":"IFERROR(Корзина!I39,\" - \")","v":0}," - "]
[32,{"$f":"IFERROR(IF(ISBLANK(Корзина!B40),\" - \",Корзина!B40),\" - \")","v":" - "},{"$f":"IFERROR(IF(ISBLANK(Корзина!C40),\" - \",Корзина!C40),\" - \")","v":" - "},{"$f":"IFERROR(IF(ISBLANK(Корзина!D40),\" - \",Корзина!D40),\" - \")","v":" - "},{"$f":"IFERROR(IF(ISBLANK(Корзина!F40),\" - \",Корзина!F40),\" - \")","v":" - "},{"$f":"IFERROR(IF(Корзина!G40=\"\",\"\",Корзина!G40),\" - \")","v":""},{"$f":"IFERROR(Корзина!I40,\" - \")","v":0}," - "]
[33,{"$f":"IFERROR(IF(ISBLANK(Корзина!B41),\" - \",Корзина!B41),\" - \")","v":" - "},{"$f":"IFERROR(IF(ISBLANK(Корзина!C41),\" - \",Корзина!C41),\" - \")","v":" - "},{"$f":"IFERROR(IF(ISBLANK(Корзина!D41),\" - \",Корзина!D41),\" - \")","v":" - "},{"$f":"IFERROR(IF(ISBLANK(Корзина!F41),\" - \",Корзина!F41),\" - \")","v":" - "},{"$f":"IFERROR(IF(Корзина!G41=\"\",\"\",Корзина!G41),\" - \")","v":""},{"$f":"IFERROR(Корзина!I41,\" - \")","v":0}," - "]
[34,{"$f":"IFERROR(IF(ISBLANK(Корзина!B42),\" - \",Корзина!B42),\" - \")","v":" - "},{"$f":"IFERROR(IF(ISBLANK(Корзина!C42),\" - \",Корзина!C42),\" - \")","v":" - "},{"$f":"IFERROR(IF(ISBLANK(Корзина!D42),\" - \",Корзина!D42),\" - \")","v":" - "},{"$f":"IFERROR(IF(ISBLANK(Корзина!F42),\" - \",Корзина!F42),\" - \")","v":" - "},{"$f":"IFERROR(IF(Корзина!G42=\"\",\"\",Корзина!G42),\" - \")","v":""},{"$f":"IFERROR(Корзина!I42,\" - \")","v":0}," - "]
[35,{"$f":"IFERROR(IF(ISBLANK(Корзина!B43),\" - \",Корзина!B43),\" - \")","v":" - "},{"$f":"IFERROR(IF(ISBLANK(Корзина!C43),\" - \",Корзина!C43),\" - \")","v":" - "},{"$f":"IFERROR(IF(ISBLANK(Корзина!D43),\" - \",Корзина!D43),\" - \")","v":" - "},{"$f":"IFERROR(IF(ISBLANK(Корзина!F43),\" - \",Корзина!F43),\" - \")","v":" - "},{"$f":"IFERROR(IF(Корзина!G43=\"\",\"\",Корзина!G43),\" - \")","v":""},{"$f":"IFERROR(Корзина!I43,\" - \")","v":0}," - "]
[36,{"$f":"IFERROR(IF(ISBLANK(Корзина!B44),\" - \",Корзина!B44),\" - \")","v":" - "},{"$f":"IFERROR(IF(ISBLANK(Корзина!C44),\" - \",Корзина!C44),\" - \")","v":" - "},{"$f":"IFERROR(IF(ISBLANK(Корзина!D44),\" - \",Корзина!D44),\" - \")","v":" - "},{"$f":"IFERROR(IF(ISBLANK(Корзина!F44),\" - \",Корзина!F44),\" - \")","v":" - "},{"$f":"IFERROR(IF(Корзина!G44=\"\",\"\",Корзина!G44),\" - \")","v":""},{"$f":"IFERROR(Корзина!I44,\" - \")","v":0}," - "]
[37,{"$f":"IFERROR(IF(ISBLANK(Корзина!B45),\" - \",Корзина!B45),\" - \")","v":" - "},{"$f":"IFERROR(IF(ISBLANK(Корзина!C45),\" - \",Корзина!C45),\" - \")","v":" - "},{"$f":"IFERROR(IF(ISBLANK(Корзина!D45),\" - \",Корзина!D45),\" - \")","v":" - "},{"$f":"IFERROR(IF(ISBLANK(Корзина!F45),\" - \",Корзина!F45),\" - \")","v":" - "},{"$f":"IFERROR(IF(Корзина!G45=\"\",\"\",Корзина!G45),\" - \")","v":""},{"$f":"IFERROR(Корзина!I45,\" - \")","v":0}," - "]
[38,{"$f":"IFERROR(IF(ISBLANK(Корзина!B46),\" - \",Корзина!B46),\" - \")","v":" - "},{"$f":"IFERROR(IF(ISBLANK(Корзина!C46),\" - \",Корзина!C46),\" - \")","v":" - "},{"$f":"IFERROR(IF(ISBLANK(Корзина!D46),\" - \",Корзина!D46),\" - \")","v":" - "},{"$f":"IFERROR(IF(ISBLANK(Корзина!F46),\" - \",Корзина!F46),\" - \")","v":" - "},{"$f":"IFERROR(IF(Корзина!G46=\"\",\"\",Корзина!G46),\" - \")","v":""},{"$f":"IFERROR(Корзина!I46,\" - \")","v":0}," - "]
[39,{"$f":"IFERROR(IF(ISBLANK(Корзина!B47),\" - \",Корзина!B47),\" - \")","v":" - "},{"$f":"IFERROR(IF(ISBLANK(Корзина!C47),\" - \",Корзина!C47),\" - \")","v":" - "},{"$f":"IFERROR(IF(ISBLANK(Корзина!D47),\" - \",Корзина!D47),\" - \")","v":" - "},{"$f":"IFERROR(IF(ISBLANK(Корзина!F47),\" - \",Корзина!F47),\" - \")","v":" - "},{"$f":"IFERROR(IF(Корзина!G47=\"\",\"\",Корзина!G47),\" - \")","v":""},{"$f":"IFERROR(Корзина!I47,\" - \")","v":0}," - "]
[40,{"$f":"IFERROR(IF(ISBLANK(Корзина!B48),\" - \",Корзина!B48),\" - \")","v":" - "},{"$f":"IFERROR(IF(ISBLANK(Корзина!C48),\" - \",Корзина!C48),\" - \")","v":" - "},{"$f":"IFERROR(IF(ISBLANK(Корзина!D48),\" - \",Корзина!D48),\" - \")","v":" - "},{"$f":"IFERROR(IF(ISBLANK(Корзина!F48),\" - \",Корзина!F48),\" - \")","v":" - "},{"$f":"IFERROR(IF(Корзина!G48=\"\",\"\",Корзина!G48),\" - \")","v":""},{"$f":"IFERROR(Корзина!I48,\" - \")","v":0}," - "]
["Сума без ПДВ:",null,null,null,null,null,null,{"$f":"SUM(H14:H53)","v":0}]
["ПДВ:",null,null,null,null,null,null,{"$f":"ROUND(H54*0.2,2)","v":0}]
["Всього з ПДВ:",null,null,null,null,null,null,{"$f":"H54+H55","v":0}]
[]
[]
[null,"Контактна особа: ",null,"тел: _______________"]